{"text_format":"1","workbook":"xlsx","n_sheets":11,"sheets":["Pedidos","Ventas Menudeo","Ventas Mayoreo","Inventario","Promociones","Gastos","Deudores","Caja&Banco","Reporte","Graficas","Hoja2"],"not_rendered":{"charts":0,"images":0,"macros":1,"external_links":0,"defined_names":14,"comments":0,"pivot_tables":5},"unopened":[],"bounds":{"document_bytes":16777216,"sheet_cells":100000,"rows_first":2000,"rows_last":500,"rows_between":2000,"halvings":0,"cell_chars":16384,"cell_head_chars":4096},"cells_cut":0,"cells_raw":0,"read":"whole","date_system":"1900"}

{"sheet":"Pedidos","index":0,"n_rows":43,"n_cols":11,"rows_kept":43,"cut":false,"hidden":false,"merged":[]}
["Fecha","Producto","Sabor","Cantidad",null,null,null,"Producto",null,"Producto","IPLAY MAX"]
["2022-05-19","IPLAY MAX","Energy Ice",0,null,null,null,"IPLAY MAX"]
["2022-05-19","IPLAY MAX","Sour Apple Melon",0,null,null,null,null,null,"Etiquetas de fila"]
["2022-05-19","IPLAY MAX","Cool Mint",0,null,null,null,null,null,"Banana Ice"]
["2022-05-19","IPLAY MAX","GrapeFruit Berry",0,null,null,null,null,null,"Berry Watermelon"]
["2022-05-19","IPLAY MAX","Lush Ice",0,null,null,null,null,null,"Bluerazz"]
["2022-05-19","IPLAY MAX","StrawBerry Lychee",0,null,null,null,null,null,"Coconut"]
["2022-05-19","IPLAY MAX","Energy Ice",4,null,null,null,null,null,"Cool Mint"]
["2022-05-19","IPLAY MAX","Sour Apple Melon",3,null,null,null,null,null,"Energy Ice"]
["2022-05-19","IPLAY MAX","Cool Mint",2,null,null,null,null,null,"Grape Ice"]
["2022-05-19","IPLAY MAX","GrapeFruit Berry",4,null,null,null,null,null,"GrapeFruit Berry"]
["2022-05-19","IPLAY MAX","Lush Ice",3,null,null,null,null,null,"Grapestraw"]
["2022-05-19","IPLAY MAX","StrawBerry Lychee",1,null,null,null,null,null,"Guava"]
["2022-06-02","IPLAY MAX","Sour Apple Melon",10,null,null,null,null,null,"Lemon Cucumber"]
["2022-06-02","IPLAY MAX","StrawBerry Lychee",10,null,null,null,null,null,"Lush Ice"]
["2022-06-02","IPLAY MAX","Guava",10,null,null,null,null,null,"Mango Ice"]
["2022-06-02","IPLAY MAX","Bluerazz",10,null,null,null,null,null,"Orange Ice"]
["2022-06-02","IPLAY MAX","GrapeFruit Berry",10,null,null,null,null,null,"Passion Fruit"]
["2022-06-02","IPLAY MAX","Grapestraw",10,null,null,null,null,null,"Peach Ice"]
["2022-06-02","IPLAY MAX","Cool Mint",10,null,null,null,null,null,"Sour Apple Melon"]
["2022-06-02","IPLAY MAX","Peach Ice",10,null,null,null,null,null,"StrawBerry Lychee"]
["2022-06-24","IPLAY MAX","Energy Ice",15]
["2022-06-24","IPLAY MAX","Sour Apple Melon",10]
["2022-06-24","IPLAY MAX","Berry Watermelon",20]
["2022-06-24","IPLAY MAX","Guava",5]
["2022-06-24","IPLAY MAX","Bluerazz",15]
["2022-06-24","IPLAY MAX","GrapeFruit Berry",10]
["2022-06-24","IPLAY MAX","Grapestraw",10]
["2022-06-24","IPLAY MAX","Cool Mint",25]
["2022-06-24","IPLAY MAX","Coconut",20]
["2022-06-24","IPLAY MAX","Lemon Cucumber",10]
["2022-06-24","IPLAY MAX","Grape Ice",20]
["2022-06-24","IPLAY MAX","Orange Ice",10]
["2022-06-24","IPLAY MAX","Peach Ice",10]
["2022-06-24","IPLAY MAX","Mango Ice",6]
["2022-06-24","IPLAY MAX","Banana Ice",10]
["2022-06-24","IPLAY MAX","Passion Fruit",4]
["2022-06-28","IPLAY MAX","Bluerazz",10]
["2022-06-28","IPLAY MAX","GrapeFruit Berry",10]
["2022-06-28","IPLAY MAX","Grapestraw",10]
["2022-06-28","IPLAY MAX","Cool Mint",15]
["2022-06-28","IPLAY MAX","Grape Ice",10]
["2022-06-28","IPLAY MAX","Peach Ice",10,null,{"$f":"SUM(D22:D43)","v":265}]

{"sheet":"Ventas Menudeo","index":1,"n_rows":93,"n_cols":12,"rows_kept":93,"cut":false,"hidden":false,"merged":[]}
["Tipo","Precio de venta"]
["IPLAY CUBE",190]
["IPLAY MAX",260]
["ELF BAR",275]
["Fecha ","Vendedor","Producto","Sabor","Cantidad","Promoción","Persona recomendo","Descuento","Precio de Venta","Venta Total","Transferencia","Efectivo"]
["2022-04-24","Julio","IPLAY MAX","Energy Ice",1,null,null,0,{"$f":"_xlfn.IFNA(VLOOKUP(VentasMenudeo[[#This Row],[Producto]],$A$2:$B$4,2,FALSE),0)","v":260},{"$f":"_xlfn.IFNA(_xlfn.IFS(VentasMenudeo[[#This Row],[Producto]]=$A$2,VentasMenudeo[[#This Row],[Precio de Venta]]*VentasMenudeo[[#This Row],[Cantidad]]-VentasMenudeo[[#This Row],[Descuento]],VentasMenudeo[[#This Row],[Producto]]=$A$3,VentasMenudeo[[#This Row],[Precio de Venta]]*VentasMenudeo[[#This Row],[Cantidad]]-VentasMenudeo[[#This Row],[Descuento]],VentasMenudeo[[#This Row],[Producto]]=$A$4,VentasMenudeo[[#This Row],[Precio de Venta]]*VentasMenudeo[[#This Row],[Cantidad]]-VentasMenudeo[[#This Row],[Descuento]]),0)","v":260},260]
["2022-04-24","Julio","IPLAY MAX","Lush Ice",1,null,null,0,{"$f":"_xlfn.IFNA(VLOOKUP(VentasMenudeo[[#This Row],[Producto]],$A$2:$B$4,2,FALSE),0)","v":260},{"$f":"_xlfn.IFNA(_xlfn.IFS(VentasMenudeo[[#This Row],[Producto]]=$A$2,VentasMenudeo[[#This Row],[Precio de Venta]]*VentasMenudeo[[#This Row],[Cantidad]]-VentasMenudeo[[#This Row],[Descuento]],VentasMenudeo[[#This Row],[Producto]]=$A$3,VentasMenudeo[[#This Row],[Precio de Venta]]*VentasMenudeo[[#This Row],[Cantidad]]-VentasMenudeo[[#This Row],[Descuento]],VentasMenudeo[[#This Row],[Producto]]=$A$4,VentasMenudeo[[#This Row],[Precio de Venta]]*VentasMenudeo[[#This Row],[Cantidad]]-VentasMenudeo[[#This Row],[Descuento]]),0)","v":260},260]
["2022-04-24","Claudia","IPLAY MAX","GrapeFruit Berry",1,null,null,0,{"$f":"_xlfn.IFNA(VLOOKUP(VentasMenudeo[[#This Row],[Producto]],$A$2:$B$4,2,FALSE),0)","v":260},{"$f":"_xlfn.IFNA(_xlfn.IFS(VentasMenudeo[[#This Row],[Producto]]=$A$2,VentasMenudeo[[#This Row],[Precio de Venta]]*VentasMenudeo[[#This Row],[Cantidad]]-VentasMenudeo[[#This Row],[Descuento]],VentasMenudeo[[#This Row],[Producto]]=$A$3,VentasMenudeo[[#This Row],[Precio de Venta]]*VentasMenudeo[[#This Row],[Cantidad]]-VentasMenudeo[[#This Row],[Descuento]],VentasMenudeo[[#This Row],[Producto]]=$A$4,VentasMenudeo[[#This Row],[Precio de Venta]]*VentasMenudeo[[#This Row],[Cantidad]]-VentasMenudeo[[#This Row],[Descuento]]),0)","v":260},null,260]
["2022-04-26","Claudia","IPLAY MAX","GrapeFruit Berry",1,null,null,0,{"$f":"_xlfn.IFNA(VLOOKUP(VentasMenudeo[[#This Row],[Producto]],$A$2:$B$4,2,FALSE),0)","v":260},{"$f":"_xlfn.IFNA(_xlfn.IFS(VentasMenudeo[[#This Row],[Producto]]=$A$2,VentasMenudeo[[#This Row],[Precio de Venta]]*VentasMenudeo[[#This Row],[Cantidad]]-VentasMenudeo[[#This Row],[Descuento]],VentasMenudeo[[#This Row],[Producto]]=$A$3,VentasMenudeo[[#This Row],[Precio de Venta]]*VentasMenudeo[[#This Row],[Cantidad]]-VentasMenudeo[[#This Row],[Descuento]],VentasMenudeo[[#This Row],[Producto]]=$A$4,VentasMenudeo[[#This Row],[Precio de Venta]]*VentasMenudeo[[#This Row],[Cantidad]]-VentasMenudeo[[#This Row],[Descuento]]),0)","v":260},null,260]
["2022-04-26","Claudia","IPLAY MAX","Cool Mint",1,null,null,0,{"$f":"_xlfn.IFNA(VLOOKUP(VentasMenudeo[[#This Row],[Producto]],$A$2:$B$4,2,FALSE),0)","v":260},{"$f":"_xlfn.IFNA(_xlfn.IFS(VentasMenudeo[[#This Row],[Producto]]=$A$2,VentasMenudeo[[#This Row],[Precio de Venta]]*VentasMenudeo[[#This Row],[Cantidad]]-VentasMenudeo[[#This Row],[Descuento]],VentasMenudeo[[#This Row],[Producto]]=$A$3,VentasMenudeo[[#This Row],[Precio de Venta]]*VentasMenudeo[[#This Row],[Cantidad]]-VentasMenudeo[[#This Row],[Descuento]],VentasMenudeo[[#This Row],[Producto]]=$A$4,VentasMenudeo[[#This Row],[Precio de Venta]]*VentasMenudeo[[#This Row],[Cantidad]]-VentasMenudeo[[#This Row],[Descuento]]),0)","v":260},null,260]
["2022-04-27","Claudia","IPLAY MAX","Cool Mint",1,"$20 Descuento",null,20,{"$f":"_xlfn.IFNA(VLOOKUP(VentasMenudeo[[#This Row],[Producto]],$A$2:$B$4,2,FALSE),0)","v":260},{"$f":"_xlfn.IFNA(_xlfn.IFS(VentasMenudeo[[#This Row],[Producto]]=$A$2,VentasMenudeo[[#This Row],[Precio de Venta]]*VentasMenudeo[[#This Row],[Cantidad]]-VentasMenudeo[[#This Row],[Descuento]],VentasMenudeo[[#This Row],[Producto]]=$A$3,VentasMenudeo[[#This Row],[Precio de Venta]]*VentasMenudeo[[#This Row],[Cantidad]]-VentasMenudeo[[#This Row],[Descuento]],VentasMenudeo[[#This Row],[Producto]]=$A$4,VentasMenudeo[[#This Row],[Precio de Venta]]*VentasMenudeo[[#This Row],[Cantidad]]-VentasMenudeo[[#This Row],[Descuento]]),0)","v":240},null,240]
["2022-04-29","Julio","IPLAY MAX","Lush Ice",1,null,null,0,{"$f":"_xlfn.IFNA(VLOOKUP(VentasMenudeo[[#This Row],[Producto]],$A$2:$B$4,2,FALSE),0)","v":260},{"$f":"_xlfn.IFNA(_xlfn.IFS(VentasMenudeo[[#This Row],[Producto]]=$A$2,VentasMenudeo[[#This Row],[Precio de Venta]]*VentasMenudeo[[#This Row],[Cantidad]]-VentasMenudeo[[#This Row],[Descuento]],VentasMenudeo[[#This Row],[Producto]]=$A$3,VentasMenudeo[[#This Row],[Precio de Venta]]*VentasMenudeo[[#This Row],[Cantidad]]-VentasMenudeo[[#This Row],[Descuento]],VentasMenudeo[[#This Row],[Producto]]=$A$4,VentasMenudeo[[#This Row],[Precio de Venta]]*VentasMenudeo[[#This Row],[Cantidad]]-VentasMenudeo[[#This Row],[Descuento]]),0)","v":260},260]
["2022-04-30","Julio","IPLAY MAX","Lush Ice",1,null,null,60,{"$f":"_xlfn.IFNA(VLOOKUP(VentasMenudeo[[#This Row],[Producto]],$A$2:$B$4,2,FALSE),0)","v":260},{"$f":"_xlfn.IFNA(_xlfn.IFS(VentasMenudeo[[#This Row],[Producto]]=$A$2,VentasMenudeo[[#This Row],[Precio de Venta]]*VentasMenudeo[[#This Row],[Cantidad]]-VentasMenudeo[[#This Row],[Descuento]],VentasMenudeo[[#This Row],[Producto]]=$A$3,VentasMenudeo[[#This Row],[Precio de Venta]]*VentasMenudeo[[#This Row],[Cantidad]]-VentasMenudeo[[#This Row],[Descuento]],VentasMenudeo[[#This Row],[Producto]]=$A$4,VentasMenudeo[[#This Row],[Precio de Venta]]*VentasMenudeo[[#This Row],[Cantidad]]-VentasMenudeo[[#This Row],[Descuento]]),0)","v":200},200]
["2022-05-05","Julio","IPLAY MAX","StrawBerry Lychee",1,"$20 Descuento",null,20,{"$f":"_xlfn.IFNA(VLOOKUP(VentasMenudeo[[#This Row],[Producto]],$A$2:$B$4,2,FALSE),0)","v":260},{"$f":"_xlfn.IFNA(_xlfn.IFS(VentasMenudeo[[#This Row],[Producto]]=$A$2,VentasMenudeo[[#This Row],[Precio de Venta]]*VentasMenudeo[[#This Row],[Cantidad]]-VentasMenudeo[[#This Row],[Descuento]],VentasMenudeo[[#This Row],[Producto]]=$A$3,VentasMenudeo[[#This Row],[Precio de Venta]]*VentasMenudeo[[#This Row],[Cantidad]]-VentasMenudeo[[#This Row],[Descuento]],VentasMenudeo[[#This Row],[Producto]]=$A$4,VentasMenudeo[[#This Row],[Precio de Venta]]*VentasMenudeo[[#This Row],[Cantidad]]-VentasMenudeo[[#This Row],[Descuento]]),0)","v":240},240]
["2022-05-06","Claudia","IPLAY MAX","Sour Apple Melon",1,null,null,0,{"$f":"_xlfn.IFNA(VLOOKUP(VentasMenudeo[[#This Row],[Producto]],$A$2:$B$4,2,FALSE),0)","v":260},{"$f":"_xlfn.IFNA(_xlfn.IFS(VentasMenudeo[[#This Row],[Producto]]=$A$2,VentasMenudeo[[#This Row],[Precio de Venta]]*VentasMenudeo[[#This Row],[Cantidad]]-VentasMenudeo[[#This Row],[Descuento]],VentasMenudeo[[#This Row],[Producto]]=$A$3,VentasMenudeo[[#This Row],[Precio de Venta]]*VentasMenudeo[[#This Row],[Cantidad]]-VentasMenudeo[[#This Row],[Descuento]],VentasMenudeo[[#This Row],[Producto]]=$A$4,VentasMenudeo[[#This Row],[Precio de Venta]]*VentasMenudeo[[#This Row],[Cantidad]]-VentasMenudeo[[#This Row],[Descuento]]),0)","v":260},null,260]
["2022-05-06","Julio","IPLAY MAX","Energy Ice",1,null,null,0,{"$f":"_xlfn.IFNA(VLOOKUP(VentasMenudeo[[#This Row],[Producto]],$A$2:$B$4,2,FALSE),0)","v":260},{"$f":"_xlfn.IFNA(_xlfn.IFS(VentasMenudeo[[#This Row],[Producto]]=$A$2,VentasMenudeo[[#This Row],[Precio de Venta]]*VentasMenudeo[[#This Row],[Cantidad]]-VentasMenudeo[[#This Row],[Descuento]],VentasMenudeo[[#This Row],[Producto]]=$A$3,VentasMenudeo[[#This Row],[Precio de Venta]]*VentasMenudeo[[#This Row],[Cantidad]]-VentasMenudeo[[#This Row],[Descuento]],VentasMenudeo[[#This Row],[Producto]]=$A$4,VentasMenudeo[[#This Row],[Precio de Venta]]*VentasMenudeo[[#This Row],[Cantidad]]-VentasMenudeo[[#This Row],[Descuento]]),0)","v":260},260]
["2022-05-06","Claudia","IPLAY MAX","GrapeFruit Berry",1,null,null,0,{"$f":"_xlfn.IFNA(VLOOKUP(VentasMenudeo[[#This Row],[Producto]],$A$2:$B$4,2,FALSE),0)","v":260},{"$f":"_xlfn.IFNA(_xlfn.IFS(VentasMenudeo[[#This Row],[Producto]]=$A$2,VentasMenudeo[[#This Row],[Precio de Venta]]*VentasMenudeo[[#This Row],[Cantidad]]-VentasMenudeo[[#This Row],[Descuento]],VentasMenudeo[[#This Row],[Producto]]=$A$3,VentasMenudeo[[#This Row],[Precio de Venta]]*VentasMenudeo[[#This Row],[Cantidad]]-VentasMenudeo[[#This Row],[Descuento]],VentasMenudeo[[#This Row],[Producto]]=$A$4,VentasMenudeo[[#This Row],[Precio de Venta]]*VentasMenudeo[[#This Row],[Cantidad]]-VentasMenudeo[[#This Row],[Descuento]]),0)","v":260},260]
["2022-05-19","Julio","IPLAY MAX","Energy Ice",2,null,null,null,{"$f":"_xlfn.IFNA(VLOOKUP(VentasMenudeo[[#This Row],[Producto]],$A$2:$B$4,2,FALSE),0)","v":260},{"$f":"_xlfn.IFNA(_xlfn.IFS(VentasMenudeo[[#This Row],[Producto]]=$A$2,VentasMenudeo[[#This Row],[Precio de Venta]]*VentasMenudeo[[#This Row],[Cantidad]]-VentasMenudeo[[#This Row],[Descuento]],VentasMenudeo[[#This Row],[Producto]]=$A$3,VentasMenudeo[[#This Row],[Precio de Venta]]*VentasMenudeo[[#This Row],[Cantidad]]-VentasMenudeo[[#This Row],[Descuento]],VentasMenudeo[[#This Row],[Producto]]=$A$4,VentasMenudeo[[#This Row],[Precio de Venta]]*VentasMenudeo[[#This Row],[Cantidad]]-VentasMenudeo[[#This Row],[Descuento]]),0)","v":520},null,520]
["2022-05-19","Julio","IPLAY MAX","Sour Apple Melon",1,null,null,null,{"$f":"_xlfn.IFNA(VLOOKUP(VentasMenudeo[[#This Row],[Producto]],$A$2:$B$4,2,FALSE),0)","v":260},{"$f":"_xlfn.IFNA(_xlfn.IFS(VentasMenudeo[[#This Row],[Producto]]=$A$2,VentasMenudeo[[#This Row],[Precio de Venta]]*VentasMenudeo[[#This Row],[Cantidad]]-VentasMenudeo[[#This Row],[Descuento]],VentasMenudeo[[#This Row],[Producto]]=$A$3,VentasMenudeo[[#This Row],[Precio de Venta]]*VentasMenudeo[[#This Row],[Cantidad]]-VentasMenudeo[[#This Row],[Descuento]],VentasMenudeo[[#This Row],[Producto]]=$A$4,VentasMenudeo[[#This Row],[Precio de Venta]]*VentasMenudeo[[#This Row],[Cantidad]]-VentasMenudeo[[#This Row],[Descuento]]),0)","v":260},null,260]
["2022-06-02","Julio","IPLAY MAX","Peach Ice",1,null,null,null,{"$f":"_xlfn.IFNA(VLOOKUP(VentasMenudeo[[#This Row],[Producto]],$A$2:$B$4,2,FALSE),0)","v":260},{"$f":"_xlfn.IFNA(_xlfn.IFS(VentasMenudeo[[#This Row],[Producto]]=$A$2,VentasMenudeo[[#This Row],[Precio de Venta]]*VentasMenudeo[[#This Row],[Cantidad]]-VentasMenudeo[[#This Row],[Descuento]],VentasMenudeo[[#This Row],[Producto]]=$A$3,VentasMenudeo[[#This Row],[Precio de Venta]]*VentasMenudeo[[#This Row],[Cantidad]]-VentasMenudeo[[#This Row],[Descuento]],VentasMenudeo[[#This Row],[Producto]]=$A$4,VentasMenudeo[[#This Row],[Precio de Venta]]*VentasMenudeo[[#This Row],[Cantidad]]-VentasMenudeo[[#This Row],[Descuento]]),0)","v":260},260]
["2022-06-02","Julio","IPLAY MAX","Cool Mint",1,null,null,null,{"$f":"_xlfn.IFNA(VLOOKUP(VentasMenudeo[[#This Row],[Producto]],$A$2:$B$4,2,FALSE),0)","v":260},{"$f":"_xlfn.IFNA(_xlfn.IFS(VentasMenudeo[[#This Row],[Producto]]=$A$2,VentasMenudeo[[#This Row],[Precio de Venta]]*VentasMenudeo[[#This Row],[Cantidad]]-VentasMenudeo[[#This Row],[Descuento]],VentasMenudeo[[#This Row],[Producto]]=$A$3,VentasMenudeo[[#This Row],[Precio de Venta]]*VentasMenudeo[[#This Row],[Cantidad]]-VentasMenudeo[[#This Row],[Descuento]],VentasMenudeo[[#This Row],[Producto]]=$A$4,VentasMenudeo[[#This Row],[Precio de Venta]]*VentasMenudeo[[#This Row],[Cantidad]]-VentasMenudeo[[#This Row],[Descuento]]),0)","v":260},null,260]
["2022-06-02","Julio","IPLAY MAX","Peach Ice",1,null,null,null,{"$f":"_xlfn.IFNA(VLOOKUP(VentasMenudeo[[#This Row],[Producto]],$A$2:$B$4,2,FALSE),0)","v":260},{"$f":"_xlfn.IFNA(_xlfn.IFS(VentasMenudeo[[#This Row],[Producto]]=$A$2,VentasMenudeo[[#This Row],[Precio de Venta]]*VentasMenudeo[[#This Row],[Cantidad]]-VentasMenudeo[[#This Row],[Descuento]],VentasMenudeo[[#This Row],[Producto]]=$A$3,VentasMenudeo[[#This Row],[Precio de Venta]]*VentasMenudeo[[#This Row],[Cantidad]]-VentasMenudeo[[#This Row],[Descuento]],VentasMenudeo[[#This Row],[Producto]]=$A$4,VentasMenudeo[[#This Row],[Precio de Venta]]*VentasMenudeo[[#This Row],[Cantidad]]-VentasMenudeo[[#This Row],[Descuento]]),0)","v":260},260]
["2022-06-02","Julio","IPLAY MAX","Cool Mint",1,null,null,null,{"$f":"_xlfn.IFNA(VLOOKUP(VentasMenudeo[[#This Row],[Producto]],$A$2:$B$4,2,FALSE),0)","v":260},{"$f":"_xlfn.IFNA(_xlfn.IFS(VentasMenudeo[[#This Row],[Producto]]=$A$2,VentasMenudeo[[#This Row],[Precio de Venta]]*VentasMenudeo[[#This Row],[Cantidad]]-VentasMenudeo[[#This Row],[Descuento]],VentasMenudeo[[#This Row],[Producto]]=$A$3,VentasMenudeo[[#This Row],[Precio de Venta]]*VentasMenudeo[[#This Row],[Cantidad]]-VentasMenudeo[[#This Row],[Descuento]],VentasMenudeo[[#This Row],[Producto]]=$A$4,VentasMenudeo[[#This Row],[Precio de Venta]]*VentasMenudeo[[#This Row],[Cantidad]]-VentasMenudeo[[#This Row],[Descuento]]),0)","v":260},260]
["2022-06-02","Julio","IPLAY MAX","GrapeFruit Berry",1,null,null,null,{"$f":"_xlfn.IFNA(VLOOKUP(VentasMenudeo[[#This Row],[Producto]],$A$2:$B$4,2,FALSE),0)","v":260},{"$f":"_xlfn.IFNA(_xlfn.IFS(VentasMenudeo[[#This Row],[Producto]]=$A$2,VentasMenudeo[[#This Row],[Precio de Venta]]*VentasMenudeo[[#This Row],[Cantidad]]-VentasMenudeo[[#This Row],[Descuento]],VentasMenudeo[[#This Row],[Producto]]=$A$3,VentasMenudeo[[#This Row],[Precio de Venta]]*VentasMenudeo[[#This Row],[Cantidad]]-VentasMenudeo[[#This Row],[Descuento]],VentasMenudeo[[#This Row],[Producto]]=$A$4,VentasMenudeo[[#This Row],[Precio de Venta]]*VentasMenudeo[[#This Row],[Cantidad]]-VentasMenudeo[[#This Row],[Descuento]]),0)","v":260},260]
["2022-06-06","Julio","IPLAY MAX","Cool Mint",4,null,null,null,{"$f":"_xlfn.IFNA(VLOOKUP(VentasMenudeo[[#This Row],[Producto]],$A$2:$B$4,2,FALSE),0)","v":260},{"$f":"_xlfn.IFNA(_xlfn.IFS(VentasMenudeo[[#This Row],[Producto]]=$A$2,VentasMenudeo[[#This Row],[Precio de Venta]]*VentasMenudeo[[#This Row],[Cantidad]]-VentasMenudeo[[#This Row],[Descuento]],VentasMenudeo[[#This Row],[Producto]]=$A$3,VentasMenudeo[[#This Row],[Precio de Venta]]*VentasMenudeo[[#This Row],[Cantidad]]-VentasMenudeo[[#This Row],[Descuento]],VentasMenudeo[[#This Row],[Producto]]=$A$4,VentasMenudeo[[#This Row],[Precio de Venta]]*VentasMenudeo[[#This Row],[Cantidad]]-VentasMenudeo[[#This Row],[Descuento]]),0)","v":1040},1040]
["2022-06-06","Julio","IPLAY MAX","Grapestraw",3,null,null,null,{"$f":"_xlfn.IFNA(VLOOKUP(VentasMenudeo[[#This Row],[Producto]],$A$2:$B$4,2,FALSE),0)","v":260},{"$f":"_xlfn.IFNA(_xlfn.IFS(VentasMenudeo[[#This Row],[Producto]]=$A$2,VentasMenudeo[[#This Row],[Precio de Venta]]*VentasMenudeo[[#This Row],[Cantidad]]-VentasMenudeo[[#This Row],[Descuento]],VentasMenudeo[[#This Row],[Producto]]=$A$3,VentasMenudeo[[#This Row],[Precio de Venta]]*VentasMenudeo[[#This Row],[Cantidad]]-VentasMenudeo[[#This Row],[Descuento]],VentasMenudeo[[#This Row],[Producto]]=$A$4,VentasMenudeo[[#This Row],[Precio de Venta]]*VentasMenudeo[[#This Row],[Cantidad]]-VentasMenudeo[[#This Row],[Descuento]]),0)","v":780},780]
["2022-06-16","Julio","IPLAY MAX","Cool Mint",1,null,null,null,{"$f":"_xlfn.IFNA(VLOOKUP(VentasMenudeo[[#This Row],[Producto]],$A$2:$B$4,2,FALSE),0)","v":260},{"$f":"_xlfn.IFNA(_xlfn.IFS(VentasMenudeo[[#This Row],[Producto]]=$A$2,VentasMenudeo[[#This Row],[Precio de Venta]]*VentasMenudeo[[#This Row],[Cantidad]]-VentasMenudeo[[#This Row],[Descuento]],VentasMenudeo[[#This Row],[Producto]]=$A$3,VentasMenudeo[[#This Row],[Precio de Venta]]*VentasMenudeo[[#This Row],[Cantidad]]-VentasMenudeo[[#This Row],[Descuento]],VentasMenudeo[[#This Row],[Producto]]=$A$4,VentasMenudeo[[#This Row],[Precio de Venta]]*VentasMenudeo[[#This Row],[Cantidad]]-VentasMenudeo[[#This Row],[Descuento]]),0)","v":260},260]
["2022-06-16","Julio","IPLAY MAX","StrawBerry Lychee",2,null,null,null,{"$f":"_xlfn.IFNA(VLOOKUP(VentasMenudeo[[#This Row],[Producto]],$A$2:$B$4,2,FALSE),0)","v":260},{"$f":"_xlfn.IFNA(_xlfn.IFS(VentasMenudeo[[#This Row],[Producto]]=$A$2,VentasMenudeo[[#This Row],[Precio de Venta]]*VentasMenudeo[[#This Row],[Cantidad]]-VentasMenudeo[[#This Row],[Descuento]],VentasMenudeo[[#This Row],[Producto]]=$A$3,VentasMenudeo[[#This Row],[Precio de Venta]]*VentasMenudeo[[#This Row],[Cantidad]]-VentasMenudeo[[#This Row],[Descuento]],VentasMenudeo[[#This Row],[Producto]]=$A$4,VentasMenudeo[[#This Row],[Precio de Venta]]*VentasMenudeo[[#This Row],[Cantidad]]-VentasMenudeo[[#This Row],[Descuento]]),0)","v":520},520]
["2022-06-16","Julio","IPLAY MAX","Sour Apple Melon",1,"Personal",null,{"$f":"_xlfn.IFNA(VLOOKUP(VentasMenudeo[[#This Row],[Promoción]],PromocionesMenudeo[[Promocion]:[Descuento]],2,FALSE),0)","v":137},{"$f":"_xlfn.IFNA(VLOOKUP(VentasMenudeo[[#This Row],[Producto]],$A$2:$B$4,2,FALSE),0)","v":260},{"$f":"_xlfn.IFNA(_xlfn.IFS(VentasMenudeo[[#This Row],[Producto]]=$A$2,VentasMenudeo[[#This Row],[Precio de Venta]]*VentasMenudeo[[#This Row],[Cantidad]]-VentasMenudeo[[#This Row],[Descuento]],VentasMenudeo[[#This Row],[Producto]]=$A$3,VentasMenudeo[[#This Row],[Precio de Venta]]*VentasMenudeo[[#This Row],[Cantidad]]-VentasMenudeo[[#This Row],[Descuento]],VentasMenudeo[[#This Row],[Producto]]=$A$4,VentasMenudeo[[#This Row],[Precio de Venta]]*VentasMenudeo[[#This Row],[Cantidad]]-VentasMenudeo[[#This Row],[Descuento]]),0)","v":123},123]
["2022-06-16","Julio","IPLAY MAX","GrapeFruit Berry",3,null,null,{"$f":"_xlfn.IFNA(VLOOKUP(VentasMenudeo[[#This Row],[Promoción]],PromocionesMenudeo[[Promocion]:[Descuento]],2,FALSE),0)","v":0},{"$f":"_xlfn.IFNA(VLOOKUP(VentasMenudeo[[#This Row],[Producto]],$A$2:$B$4,2,FALSE),0)","v":260},{"$f":"_xlfn.IFNA(_xlfn.IFS(VentasMenudeo[[#This Row],[Producto]]=$A$2,VentasMenudeo[[#This Row],[Precio de Venta]]*VentasMenudeo[[#This Row],[Cantidad]]-VentasMenudeo[[#This Row],[Descuento]],VentasMenudeo[[#This Row],[Producto]]=$A$3,VentasMenudeo[[#This Row],[Precio de Venta]]*VentasMenudeo[[#This Row],[Cantidad]]-VentasMenudeo[[#This Row],[Descuento]],VentasMenudeo[[#This Row],[Producto]]=$A$4,VentasMenudeo[[#This Row],[Precio de Venta]]*VentasMenudeo[[#This Row],[Cantidad]]-VentasMenudeo[[#This Row],[Descuento]]),0)","v":780},780]
["2022-06-16","Julio","IPLAY MAX","GrapeFruit Berry",2,"Personal",null,{"$f":"_xlfn.IFNA(VLOOKUP(VentasMenudeo[[#This Row],[Promoción]],PromocionesMenudeo[[Promocion]:[Descuento]],2,FALSE),0)","v":137},{"$f":"_xlfn.IFNA(VLOOKUP(VentasMenudeo[[#This Row],[Producto]],$A$2:$B$4,2,FALSE),0)","v":260},{"$f":"_xlfn.IFNA(_xlfn.IFS(VentasMenudeo[[#This Row],[Producto]]=$A$2,VentasMenudeo[[#This Row],[Precio de Venta]]*VentasMenudeo[[#This Row],[Cantidad]]-VentasMenudeo[[#This Row],[Descuento]],VentasMenudeo[[#This Row],[Producto]]=$A$3,VentasMenudeo[[#This Row],[Precio de Venta]]*VentasMenudeo[[#This Row],[Cantidad]]-VentasMenudeo[[#This Row],[Descuento]],VentasMenudeo[[#This Row],[Producto]]=$A$4,VentasMenudeo[[#This Row],[Precio de Venta]]*VentasMenudeo[[#This Row],[Cantidad]]-VentasMenudeo[[#This Row],[Descuento]]),0)","v":383},383]
["2022-06-16","Julio","IPLAY MAX","Bluerazz",2,null,null,{"$f":"_xlfn.IFNA(VLOOKUP(VentasMenudeo[[#This Row],[Promoción]],PromocionesMenudeo[[Promocion]:[Descuento]],2,FALSE),0)","v":0},{"$f":"_xlfn.IFNA(VLOOKUP(VentasMenudeo[[#This Row],[Producto]],$A$2:$B$4,2,FALSE),0)","v":260},{"$f":"_xlfn.IFNA(_xlfn.IFS(VentasMenudeo[[#This Row],[Producto]]=$A$2,VentasMenudeo[[#This Row],[Precio de Venta]]*VentasMenudeo[[#This Row],[Cantidad]]-VentasMenudeo[[#This Row],[Descuento]],VentasMenudeo[[#This Row],[Producto]]=$A$3,VentasMenudeo[[#This Row],[Precio de Venta]]*VentasMenudeo[[#This Row],[Cantidad]]-VentasMenudeo[[#This Row],[Descuento]],VentasMenudeo[[#This Row],[Producto]]=$A$4,VentasMenudeo[[#This Row],[Precio de Venta]]*VentasMenudeo[[#This Row],[Cantidad]]-VentasMenudeo[[#This Row],[Descuento]]),0)","v":520},520]
["2022-06-16","Julio","IPLAY MAX","Peach Ice",1,"Personal",null,{"$f":"_xlfn.IFNA(VLOOKUP(VentasMenudeo[[#This Row],[Promoción]],PromocionesMenudeo[[Promocion]:[Descuento]],2,FALSE),0)","v":137},{"$f":"_xlfn.IFNA(VLOOKUP(VentasMenudeo[[#This Row],[Producto]],$A$2:$B$4,2,FALSE),0)","v":260},{"$f":"_xlfn.IFNA(_xlfn.IFS(VentasMenudeo[[#This Row],[Producto]]=$A$2,VentasMenudeo[[#This Row],[Precio de Venta]]*VentasMenudeo[[#This Row],[Cantidad]]-VentasMenudeo[[#This Row],[Descuento]],VentasMenudeo[[#This Row],[Producto]]=$A$3,VentasMenudeo[[#This Row],[Precio de Venta]]*VentasMenudeo[[#This Row],[Cantidad]]-VentasMenudeo[[#This Row],[Descuento]],VentasMenudeo[[#This Row],[Producto]]=$A$4,VentasMenudeo[[#This Row],[Precio de Venta]]*VentasMenudeo[[#This Row],[Cantidad]]-VentasMenudeo[[#This Row],[Descuento]]),0)","v":123},123]
["2022-06-16","Julio","IPLAY MAX","Peach Ice",1,"No aplica",null,{"$f":"_xlfn.IFNA(VLOOKUP(VentasMenudeo[[#This Row],[Promoción]],PromocionesMenudeo[[Promocion]:[Descuento]],2,FALSE),0)","v":0},{"$f":"_xlfn.IFNA(VLOOKUP(VentasMenudeo[[#This Row],[Producto]],$A$2:$B$4,2,FALSE),0)","v":260},{"$f":"_xlfn.IFNA(_xlfn.IFS(VentasMenudeo[[#This Row],[Producto]]=$A$2,VentasMenudeo[[#This Row],[Precio de Venta]]*VentasMenudeo[[#This Row],[Cantidad]]-VentasMenudeo[[#This Row],[Descuento]],VentasMenudeo[[#This Row],[Producto]]=$A$3,VentasMenudeo[[#This Row],[Precio de Venta]]*VentasMenudeo[[#This Row],[Cantidad]]-VentasMenudeo[[#This Row],[Descuento]],VentasMenudeo[[#This Row],[Producto]]=$A$4,VentasMenudeo[[#This Row],[Precio de Venta]]*VentasMenudeo[[#This Row],[Cantidad]]-VentasMenudeo[[#This Row],[Descuento]]),0)","v":260},260]
["2022-06-17","Julio","IPLAY MAX","GrapeFruit Berry",1,null,null,{"$f":"_xlfn.IFNA(VLOOKUP(VentasMenudeo[[#This Row],[Promoción]],PromocionesMenudeo[[Promocion]:[Descuento]],2,FALSE),0)","v":0},{"$f":"_xlfn.IFNA(VLOOKUP(VentasMenudeo[[#This Row],[Producto]],$A$2:$B$4,2,FALSE),0)","v":260},{"$f":"_xlfn.IFNA(_xlfn.IFS(VentasMenudeo[[#This Row],[Producto]]=$A$2,VentasMenudeo[[#This Row],[Precio de Venta]]*VentasMenudeo[[#This Row],[Cantidad]]-VentasMenudeo[[#This Row],[Descuento]],VentasMenudeo[[#This Row],[Producto]]=$A$3,VentasMenudeo[[#This Row],[Precio de Venta]]*VentasMenudeo[[#This Row],[Cantidad]]-VentasMenudeo[[#This Row],[Descuento]],VentasMenudeo[[#This Row],[Producto]]=$A$4,VentasMenudeo[[#This Row],[Precio de Venta]]*VentasMenudeo[[#This Row],[Cantidad]]-VentasMenudeo[[#This Row],[Descuento]]),0)","v":260},260]
["2022-06-17","Julio","IPLAY MAX","Bluerazz",2,null,null,{"$f":"_xlfn.IFNA(VLOOKUP(VentasMenudeo[[#This Row],[Promoción]],PromocionesMenudeo[[Promocion]:[Descuento]],2,FALSE),0)","v":0},{"$f":"_xlfn.IFNA(VLOOKUP(VentasMenudeo[[#This Row],[Producto]],$A$2:$B$4,2,FALSE),0)","v":260},{"$f":"_xlfn.IFNA(_xlfn.IFS(VentasMenudeo[[#This Row],[Producto]]=$A$2,VentasMenudeo[[#This Row],[Precio de Venta]]*VentasMenudeo[[#This Row],[Cantidad]]-VentasMenudeo[[#This Row],[Descuento]],VentasMenudeo[[#This Row],[Producto]]=$A$3,VentasMenudeo[[#This Row],[Precio de Venta]]*VentasMenudeo[[#This Row],[Cantidad]]-VentasMenudeo[[#This Row],[Descuento]],VentasMenudeo[[#This Row],[Producto]]=$A$4,VentasMenudeo[[#This Row],[Precio de Venta]]*VentasMenudeo[[#This Row],[Cantidad]]-VentasMenudeo[[#This Row],[Descuento]]),0)","v":520},null,520]
["2022-06-17","Julio","IPLAY MAX","GrapeFruit Berry",1,null,null,{"$f":"_xlfn.IFNA(VLOOKUP(VentasMenudeo[[#This Row],[Promoción]],PromocionesMenudeo[[Promocion]:[Descuento]],2,FALSE),0)","v":0},{"$f":"_xlfn.IFNA(VLOOKUP(VentasMenudeo[[#This Row],[Producto]],$A$2:$B$4,2,FALSE),0)","v":260},{"$f":"_xlfn.IFNA(_xlfn.IFS(VentasMenudeo[[#This Row],[Producto]]=$A$2,VentasMenudeo[[#This Row],[Precio de Venta]]*VentasMenudeo[[#This Row],[Cantidad]]-VentasMenudeo[[#This Row],[Descuento]],VentasMenudeo[[#This Row],[Producto]]=$A$3,VentasMenudeo[[#This Row],[Precio de Venta]]*VentasMenudeo[[#This Row],[Cantidad]]-VentasMenudeo[[#This Row],[Descuento]],VentasMenudeo[[#This Row],[Producto]]=$A$4,VentasMenudeo[[#This Row],[Precio de Venta]]*VentasMenudeo[[#This Row],[Cantidad]]-VentasMenudeo[[#This Row],[Descuento]]),0)","v":260},null,260]
["2022-06-23","Julio","IPLAY MAX","StrawBerry Lychee",2,"$20 peso",null,{"$f":"_xlfn.IFNA(VLOOKUP(VentasMenudeo[[#This Row],[Promoción]],PromocionesMenudeo[[Promocion]:[Descuento]],2,FALSE),0)","v":20},{"$f":"_xlfn.IFNA(VLOOKUP(VentasMenudeo[[#This Row],[Producto]],$A$2:$B$4,2,FALSE),0)","v":260},{"$f":"_xlfn.IFNA(_xlfn.IFS(VentasMenudeo[[#This Row],[Producto]]=$A$2,VentasMenudeo[[#This Row],[Precio de Venta]]*VentasMenudeo[[#This Row],[Cantidad]]-VentasMenudeo[[#This Row],[Descuento]],VentasMenudeo[[#This Row],[Producto]]=$A$3,VentasMenudeo[[#This Row],[Precio de Venta]]*VentasMenudeo[[#This Row],[Cantidad]]-VentasMenudeo[[#This Row],[Descuento]],VentasMenudeo[[#This Row],[Producto]]=$A$4,VentasMenudeo[[#This Row],[Precio de Venta]]*VentasMenudeo[[#This Row],[Cantidad]]-VentasMenudeo[[#This Row],[Descuento]]),0)","v":500},{"$f":"VentasMenudeo[[#This Row],[Venta Total]]","v":500}]
["2022-06-23","Julio","IPLAY MAX","GrapeFruit Berry",1,"$20 peso",null,{"$f":"_xlfn.IFNA(VLOOKUP(VentasMenudeo[[#This Row],[Promoción]],PromocionesMenudeo[[Promocion]:[Descuento]],2,FALSE),0)","v":20},{"$f":"_xlfn.IFNA(VLOOKUP(VentasMenudeo[[#This Row],[Producto]],$A$2:$B$4,2,FALSE),0)","v":260},{"$f":"_xlfn.IFNA(_xlfn.IFS(VentasMenudeo[[#This Row],[Producto]]=$A$2,VentasMenudeo[[#This Row],[Precio de Venta]]*VentasMenudeo[[#This Row],[Cantidad]]-VentasMenudeo[[#This Row],[Descuento]],VentasMenudeo[[#This Row],[Producto]]=$A$3,VentasMenudeo[[#This Row],[Precio de Venta]]*VentasMenudeo[[#This Row],[Cantidad]]-VentasMenudeo[[#This Row],[Descuento]],VentasMenudeo[[#This Row],[Producto]]=$A$4,VentasMenudeo[[#This Row],[Precio de Venta]]*VentasMenudeo[[#This Row],[Cantidad]]-VentasMenudeo[[#This Row],[Descuento]]),0)","v":240},{"$f":"VentasMenudeo[[#This Row],[Venta Total]]","v":240}]
["2022-06-23","Julio","IPLAY MAX","Sour Apple Melon",2,"$20 Descuento",null,{"$f":"_xlfn.IFNA(VLOOKUP(VentasMenudeo[[#This Row],[Promoción]],PromocionesMenudeo[[Promocion]:[Descuento]],2,FALSE),0)","v":20},{"$f":"_xlfn.IFNA(VLOOKUP(VentasMenudeo[[#This Row],[Producto]],$A$2:$B$4,2,FALSE),0)","v":260},{"$f":"_xlfn.IFNA(_xlfn.IFS(VentasMenudeo[[#This Row],[Producto]]=$A$2,VentasMenudeo[[#This Row],[Precio de Venta]]*VentasMenudeo[[#This Row],[Cantidad]]-VentasMenudeo[[#This Row],[Descuento]],VentasMenudeo[[#This Row],[Producto]]=$A$3,VentasMenudeo[[#This Row],[Precio de Venta]]*VentasMenudeo[[#This Row],[Cantidad]]-VentasMenudeo[[#This Row],[Descuento]],VentasMenudeo[[#This Row],[Producto]]=$A$4,VentasMenudeo[[#This Row],[Precio de Venta]]*VentasMenudeo[[#This Row],[Cantidad]]-VentasMenudeo[[#This Row],[Descuento]]),0)","v":500},{"$f":"VentasMenudeo[[#This Row],[Venta Total]]","v":500}]
["2022-06-23","Julio","IPLAY MAX","Guava",2,"$20 Descuento",null,{"$f":"_xlfn.IFNA(VLOOKUP(VentasMenudeo[[#This Row],[Promoción]],PromocionesMenudeo[[Promocion]:[Descuento]],2,FALSE),0)","v":20},{"$f":"_xlfn.IFNA(VLOOKUP(VentasMenudeo[[#This Row],[Producto]],$A$2:$B$4,2,FALSE),0)","v":260},{"$f":"_xlfn.IFNA(_xlfn.IFS(VentasMenudeo[[#This Row],[Producto]]=$A$2,VentasMenudeo[[#This Row],[Precio de Venta]]*VentasMenudeo[[#This Row],[Cantidad]]-VentasMenudeo[[#This Row],[Descuento]],VentasMenudeo[[#This Row],[Producto]]=$A$3,VentasMenudeo[[#This Row],[Precio de Venta]]*VentasMenudeo[[#This Row],[Cantidad]]-VentasMenudeo[[#This Row],[Descuento]],VentasMenudeo[[#This Row],[Producto]]=$A$4,VentasMenudeo[[#This Row],[Precio de Venta]]*VentasMenudeo[[#This Row],[Cantidad]]-VentasMenudeo[[#This Row],[Descuento]]),0)","v":500},{"$f":"VentasMenudeo[[#This Row],[Venta Total]]","v":500}]
["2022-06-23","Julio","IPLAY MAX","Guava",1,"Personal",null,{"$f":"_xlfn.IFNA(VLOOKUP(VentasMenudeo[[#This Row],[Promoción]],PromocionesMenudeo[[Promocion]:[Descuento]],2,FALSE),0)","v":137},{"$f":"_xlfn.IFNA(VLOOKUP(VentasMenudeo[[#This Row],[Producto]],$A$2:$B$4,2,FALSE),0)","v":260},{"$f":"_xlfn.IFNA(_xlfn.IFS(VentasMenudeo[[#This Row],[Producto]]=$A$2,VentasMenudeo[[#This Row],[Precio de Venta]]*VentasMenudeo[[#This Row],[Cantidad]]-VentasMenudeo[[#This Row],[Descuento]],VentasMenudeo[[#This Row],[Producto]]=$A$3,VentasMenudeo[[#This Row],[Precio de Venta]]*VentasMenudeo[[#This Row],[Cantidad]]-VentasMenudeo[[#This Row],[Descuento]],VentasMenudeo[[#This Row],[Producto]]=$A$4,VentasMenudeo[[#This Row],[Precio de Venta]]*VentasMenudeo[[#This Row],[Cantidad]]-VentasMenudeo[[#This Row],[Descuento]]),0)","v":123},{"$f":"VentasMenudeo[[#This Row],[Venta Total]]","v":123}]
["2022-06-23","Julio","IPLAY MAX","Bluerazz",2,null,null,{"$f":"_xlfn.IFNA(VLOOKUP(VentasMenudeo[[#This Row],[Promoción]],PromocionesMenudeo[[Promocion]:[Descuento]],2,FALSE),0)","v":0},{"$f":"_xlfn.IFNA(VLOOKUP(VentasMenudeo[[#This Row],[Producto]],$A$2:$B$4,2,FALSE),0)","v":260},{"$f":"_xlfn.IFNA(_xlfn.IFS(VentasMenudeo[[#This Row],[Producto]]=$A$2,VentasMenudeo[[#This Row],[Precio de Venta]]*VentasMenudeo[[#This Row],[Cantidad]]-VentasMenudeo[[#This Row],[Descuento]],VentasMenudeo[[#This Row],[Producto]]=$A$3,VentasMenudeo[[#This Row],[Precio de Venta]]*VentasMenudeo[[#This Row],[Cantidad]]-VentasMenudeo[[#This Row],[Descuento]],VentasMenudeo[[#This Row],[Producto]]=$A$4,VentasMenudeo[[#This Row],[Precio de Venta]]*VentasMenudeo[[#This Row],[Cantidad]]-VentasMenudeo[[#This Row],[Descuento]]),0)","v":520},null,520]
["2022-06-23","Julio","IPLAY MAX","Bluerazz",1,"$20 Descuento",null,{"$f":"_xlfn.IFNA(VLOOKUP(VentasMenudeo[[#This Row],[Promoción]],PromocionesMenudeo[[Promocion]:[Descuento]],2,FALSE),0)","v":20},{"$f":"_xlfn.IFNA(VLOOKUP(VentasMenudeo[[#This Row],[Producto]],$A$2:$B$4,2,FALSE),0)","v":260},{"$f":"_xlfn.IFNA(_xlfn.IFS(VentasMenudeo[[#This Row],[Producto]]=$A$2,VentasMenudeo[[#This Row],[Precio de Venta]]*VentasMenudeo[[#This Row],[Cantidad]]-VentasMenudeo[[#This Row],[Descuento]],VentasMenudeo[[#This Row],[Producto]]=$A$3,VentasMenudeo[[#This Row],[Precio de Venta]]*VentasMenudeo[[#This Row],[Cantidad]]-VentasMenudeo[[#This Row],[Descuento]],VentasMenudeo[[#This Row],[Producto]]=$A$4,VentasMenudeo[[#This Row],[Precio de Venta]]*VentasMenudeo[[#This Row],[Cantidad]]-VentasMenudeo[[#This Row],[Descuento]]),0)","v":240},{"$f":"VentasMenudeo[[#This Row],[Venta Total]]","v":240}]
["2022-06-23","Julio","IPLAY MAX","Peach Ice",2,"$20 Descuento",null,{"$f":"_xlfn.IFNA(VLOOKUP(VentasMenudeo[[#This Row],[Promoción]],PromocionesMenudeo[[Promocion]:[Descuento]],2,FALSE),0)","v":20},{"$f":"_xlfn.IFNA(VLOOKUP(VentasMenudeo[[#This Row],[Producto]],$A$2:$B$4,2,FALSE),0)","v":260},{"$f":"_xlfn.IFNA(_xlfn.IFS(VentasMenudeo[[#This Row],[Producto]]=$A$2,VentasMenudeo[[#This Row],[Precio de Venta]]*VentasMenudeo[[#This Row],[Cantidad]]-VentasMenudeo[[#This Row],[Descuento]],VentasMenudeo[[#This Row],[Producto]]=$A$3,VentasMenudeo[[#This Row],[Precio de Venta]]*VentasMenudeo[[#This Row],[Cantidad]]-VentasMenudeo[[#This Row],[Descuento]],VentasMenudeo[[#This Row],[Producto]]=$A$4,VentasMenudeo[[#This Row],[Precio de Venta]]*VentasMenudeo[[#This Row],[Cantidad]]-VentasMenudeo[[#This Row],[Descuento]]),0)","v":500},{"$f":"VentasMenudeo[[#This Row],[Venta Total]]","v":500}]
["2022-06-23","Julio","IPLAY MAX","Peach Ice",1,null,null,{"$f":"_xlfn.IFNA(VLOOKUP(VentasMenudeo[[#This Row],[Promoción]],PromocionesMenudeo[[Promocion]:[Descuento]],2,FALSE),0)","v":0},{"$f":"_xlfn.IFNA(VLOOKUP(VentasMenudeo[[#This Row],[Producto]],$A$2:$B$4,2,FALSE),0)","v":260},{"$f":"_xlfn.IFNA(_xlfn.IFS(VentasMenudeo[[#This Row],[Producto]]=$A$2,VentasMenudeo[[#This Row],[Precio de Venta]]*VentasMenudeo[[#This Row],[Cantidad]]-VentasMenudeo[[#This Row],[Descuento]],VentasMenudeo[[#This Row],[Producto]]=$A$3,VentasMenudeo[[#This Row],[Precio de Venta]]*VentasMenudeo[[#This Row],[Cantidad]]-VentasMenudeo[[#This Row],[Descuento]],VentasMenudeo[[#This Row],[Producto]]=$A$4,VentasMenudeo[[#This Row],[Precio de Venta]]*VentasMenudeo[[#This Row],[Cantidad]]-VentasMenudeo[[#This Row],[Descuento]]),0)","v":260},{"$f":"VentasMenudeo[[#This Row],[Venta Total]]","v":260}]
["2022-06-23","Julio","IPLAY MAX","Grapestraw",3,null,null,{"$f":"_xlfn.IFNA(VLOOKUP(VentasMenudeo[[#This Row],[Promoción]],PromocionesMenudeo[[Promocion]:[Descuento]],2,FALSE),0)","v":0},{"$f":"_xlfn.IFNA(VLOOKUP(VentasMenudeo[[#This Row],[Producto]],$A$2:$B$4,2,FALSE),0)","v":260},{"$f":"_xlfn.IFNA(_xlfn.IFS(VentasMenudeo[[#This Row],[Producto]]=$A$2,VentasMenudeo[[#This Row],[Precio de Venta]]*VentasMenudeo[[#This Row],[Cantidad]]-VentasMenudeo[[#This Row],[Descuento]],VentasMenudeo[[#This Row],[Producto]]=$A$3,VentasMenudeo[[#This Row],[Precio de Venta]]*VentasMenudeo[[#This Row],[Cantidad]]-VentasMenudeo[[#This Row],[Descuento]],VentasMenudeo[[#This Row],[Producto]]=$A$4,VentasMenudeo[[#This Row],[Precio de Venta]]*VentasMenudeo[[#This Row],[Cantidad]]-VentasMenudeo[[#This Row],[Descuento]]),0)","v":780},{"$f":"VentasMenudeo[[#This Row],[Venta Total]]","v":780}]
["2022-06-23","Julio","IPLAY MAX","Grapestraw",1,"Personal",null,{"$f":"_xlfn.IFNA(VLOOKUP(VentasMenudeo[[#This Row],[Promoción]],PromocionesMenudeo[[Promocion]:[Descuento]],2,FALSE),0)","v":137},{"$f":"_xlfn.IFNA(VLOOKUP(VentasMenudeo[[#This Row],[Producto]],$A$2:$B$4,2,FALSE),0)","v":260},{"$f":"_xlfn.IFNA(_xlfn.IFS(VentasMenudeo[[#This Row],[Producto]]=$A$2,VentasMenudeo[[#This Row],[Precio de Venta]]*VentasMenudeo[[#This Row],[Cantidad]]-VentasMenudeo[[#This Row],[Descuento]],VentasMenudeo[[#This Row],[Producto]]=$A$3,VentasMenudeo[[#This Row],[Precio de Venta]]*VentasMenudeo[[#This Row],[Cantidad]]-VentasMenudeo[[#This Row],[Descuento]],VentasMenudeo[[#This Row],[Producto]]=$A$4,VentasMenudeo[[#This Row],[Precio de Venta]]*VentasMenudeo[[#This Row],[Cantidad]]-VentasMenudeo[[#This Row],[Descuento]]),0)","v":123},{"$f":"VentasMenudeo[[#This Row],[Venta Total]]","v":123}]
["2022-06-24","Julio","IPLAY MAX","Cool Mint",2,null,null,null,{"$f":"_xlfn.IFNA(VLOOKUP(VentasMenudeo[[#This Row],[Producto]],$A$2:$B$4,2,FALSE),0)","v":260},{"$f":"_xlfn.IFNA(_xlfn.IFS(VentasMenudeo[[#This Row],[Producto]]=$A$2,VentasMenudeo[[#This Row],[Precio de Venta]]*VentasMenudeo[[#This Row],[Cantidad]]-VentasMenudeo[[#This Row],[Descuento]],VentasMenudeo[[#This Row],[Producto]]=$A$3,VentasMenudeo[[#This Row],[Precio de Venta]]*VentasMenudeo[[#This Row],[Cantidad]]-VentasMenudeo[[#This Row],[Descuento]],VentasMenudeo[[#This Row],[Producto]]=$A$4,VentasMenudeo[[#This Row],[Precio de Venta]]*VentasMenudeo[[#This Row],[Cantidad]]-VentasMenudeo[[#This Row],[Descuento]]),0)","v":520},520]
["2022-06-24","Julio","IPLAY MAX","Cool Mint",1,null,null,null,{"$f":"_xlfn.IFNA(VLOOKUP(VentasMenudeo[[#This Row],[Producto]],$A$2:$B$4,2,FALSE),0)","v":260},{"$f":"_xlfn.IFNA(_xlfn.IFS(VentasMenudeo[[#This Row],[Producto]]=$A$2,VentasMenudeo[[#This Row],[Precio de Venta]]*VentasMenudeo[[#This Row],[Cantidad]]-VentasMenudeo[[#This Row],[Descuento]],VentasMenudeo[[#This Row],[Producto]]=$A$3,VentasMenudeo[[#This Row],[Precio de Venta]]*VentasMenudeo[[#This Row],[Cantidad]]-VentasMenudeo[[#This Row],[Descuento]],VentasMenudeo[[#This Row],[Producto]]=$A$4,VentasMenudeo[[#This Row],[Precio de Venta]]*VentasMenudeo[[#This Row],[Cantidad]]-VentasMenudeo[[#This Row],[Descuento]]),0)","v":260},260]
["2022-06-24","Julio","IPLAY MAX","Energy Ice",1,null,null,null,{"$f":"_xlfn.IFNA(VLOOKUP(VentasMenudeo[[#This Row],[Producto]],$A$2:$B$4,2,FALSE),0)","v":260},{"$f":"_xlfn.IFNA(_xlfn.IFS(VentasMenudeo[[#This Row],[Producto]]=$A$2,VentasMenudeo[[#This Row],[Precio de Venta]]*VentasMenudeo[[#This Row],[Cantidad]]-VentasMenudeo[[#This Row],[Descuento]],VentasMenudeo[[#This Row],[Producto]]=$A$3,VentasMenudeo[[#This Row],[Precio de Venta]]*VentasMenudeo[[#This Row],[Cantidad]]-VentasMenudeo[[#This Row],[Descuento]],VentasMenudeo[[#This Row],[Producto]]=$A$4,VentasMenudeo[[#This Row],[Precio de Venta]]*VentasMenudeo[[#This Row],[Cantidad]]-VentasMenudeo[[#This Row],[Descuento]]),0)","v":260},260]
["2022-06-24","Julio","IPLAY MAX","Bluerazz",2,null,null,null,{"$f":"_xlfn.IFNA(VLOOKUP(VentasMenudeo[[#This Row],[Producto]],$A$2:$B$4,2,FALSE),0)","v":260},{"$f":"_xlfn.IFNA(_xlfn.IFS(VentasMenudeo[[#This Row],[Producto]]=$A$2,VentasMenudeo[[#This Row],[Precio de Venta]]*VentasMenudeo[[#This Row],[Cantidad]]-VentasMenudeo[[#This Row],[Descuento]],VentasMenudeo[[#This Row],[Producto]]=$A$3,VentasMenudeo[[#This Row],[Precio de Venta]]*VentasMenudeo[[#This Row],[Cantidad]]-VentasMenudeo[[#This Row],[Descuento]],VentasMenudeo[[#This Row],[Producto]]=$A$4,VentasMenudeo[[#This Row],[Precio de Venta]]*VentasMenudeo[[#This Row],[Cantidad]]-VentasMenudeo[[#This Row],[Descuento]]),0)","v":520},520]
["2022-06-24","Julio","IPLAY MAX","Grapestraw",2,null,null,null,{"$f":"_xlfn.IFNA(VLOOKUP(VentasMenudeo[[#This Row],[Producto]],$A$2:$B$4,2,FALSE),0)","v":260},{"$f":"_xlfn.IFNA(_xlfn.IFS(VentasMenudeo[[#This Row],[Producto]]=$A$2,VentasMenudeo[[#This Row],[Precio de Venta]]*VentasMenudeo[[#This Row],[Cantidad]]-VentasMenudeo[[#This Row],[Descuento]],VentasMenudeo[[#This Row],[Producto]]=$A$3,VentasMenudeo[[#This Row],[Precio de Venta]]*VentasMenudeo[[#This Row],[Cantidad]]-VentasMenudeo[[#This Row],[Descuento]],VentasMenudeo[[#This Row],[Producto]]=$A$4,VentasMenudeo[[#This Row],[Precio de Venta]]*VentasMenudeo[[#This Row],[Cantidad]]-VentasMenudeo[[#This Row],[Descuento]]),0)","v":520},520]
["2022-06-24","Julio","IPLAY MAX","Peach Ice",1,null,null,null,{"$f":"_xlfn.IFNA(VLOOKUP(VentasMenudeo[[#This Row],[Producto]],$A$2:$B$4,2,FALSE),0)","v":260},{"$f":"_xlfn.IFNA(_xlfn.IFS(VentasMenudeo[[#This Row],[Producto]]=$A$2,VentasMenudeo[[#This Row],[Precio de Venta]]*VentasMenudeo[[#This Row],[Cantidad]]-VentasMenudeo[[#This Row],[Descuento]],VentasMenudeo[[#This Row],[Producto]]=$A$3,VentasMenudeo[[#This Row],[Precio de Venta]]*VentasMenudeo[[#This Row],[Cantidad]]-VentasMenudeo[[#This Row],[Descuento]],VentasMenudeo[[#This Row],[Producto]]=$A$4,VentasMenudeo[[#This Row],[Precio de Venta]]*VentasMenudeo[[#This Row],[Cantidad]]-VentasMenudeo[[#This Row],[Descuento]]),0)","v":260},260]
["2022-06-24","Julio","IPLAY MAX","Berry Watermelon",1,null,null,null,{"$f":"_xlfn.IFNA(VLOOKUP(VentasMenudeo[[#This Row],[Producto]],$A$2:$B$4,2,FALSE),0)","v":260},{"$f":"_xlfn.IFNA(_xlfn.IFS(VentasMenudeo[[#This Row],[Producto]]=$A$2,VentasMenudeo[[#This Row],[Precio de Venta]]*VentasMenudeo[[#This Row],[Cantidad]]-VentasMenudeo[[#This Row],[Descuento]],VentasMenudeo[[#This Row],[Producto]]=$A$3,VentasMenudeo[[#This Row],[Precio de Venta]]*VentasMenudeo[[#This Row],[Cantidad]]-VentasMenudeo[[#This Row],[Descuento]],VentasMenudeo[[#This Row],[Producto]]=$A$4,VentasMenudeo[[#This Row],[Precio de Venta]]*VentasMenudeo[[#This Row],[Cantidad]]-VentasMenudeo[[#This Row],[Descuento]]),0)","v":260},260]
["2022-06-24","Julio","IPLAY MAX","Lemon Cucumber",1,null,null,null,{"$f":"_xlfn.IFNA(VLOOKUP(VentasMenudeo[[#This Row],[Producto]],$A$2:$B$4,2,FALSE),0)","v":260},{"$f":"_xlfn.IFNA(_xlfn.IFS(VentasMenudeo[[#This Row],[Producto]]=$A$2,VentasMenudeo[[#This Row],[Precio de Venta]]*VentasMenudeo[[#This Row],[Cantidad]]-VentasMenudeo[[#This Row],[Descuento]],VentasMenudeo[[#This Row],[Producto]]=$A$3,VentasMenudeo[[#This Row],[Precio de Venta]]*VentasMenudeo[[#This Row],[Cantidad]]-VentasMenudeo[[#This Row],[Descuento]],VentasMenudeo[[#This Row],[Producto]]=$A$4,VentasMenudeo[[#This Row],[Precio de Venta]]*VentasMenudeo[[#This Row],[Cantidad]]-VentasMenudeo[[#This Row],[Descuento]]),0)","v":260},260]
["2022-06-24","Julio","IPLAY MAX","Grape Ice",1,null,null,null,{"$f":"_xlfn.IFNA(VLOOKUP(VentasMenudeo[[#This Row],[Producto]],$A$2:$B$4,2,FALSE),0)","v":260},{"$f":"_xlfn.IFNA(_xlfn.IFS(VentasMenudeo[[#This Row],[Producto]]=$A$2,VentasMenudeo[[#This Row],[Precio de Venta]]*VentasMenudeo[[#This Row],[Cantidad]]-VentasMenudeo[[#This Row],[Descuento]],VentasMenudeo[[#This Row],[Producto]]=$A$3,VentasMenudeo[[#This Row],[Precio de Venta]]*VentasMenudeo[[#This Row],[Cantidad]]-VentasMenudeo[[#This Row],[Descuento]],VentasMenudeo[[#This Row],[Producto]]=$A$4,VentasMenudeo[[#This Row],[Precio de Venta]]*VentasMenudeo[[#This Row],[Cantidad]]-VentasMenudeo[[#This Row],[Descuento]]),0)","v":260},260]
["2022-06-27","Julio","IPLAY MAX","Cool Mint",6,null,null,null,{"$f":"_xlfn.IFNA(VLOOKUP(VentasMenudeo[[#This Row],[Producto]],$A$2:$B$4,2,FALSE),0)","v":260},{"$f":"_xlfn.IFNA(_xlfn.IFS(VentasMenudeo[[#This Row],[Producto]]=$A$2,VentasMenudeo[[#This Row],[Precio de Venta]]*VentasMenudeo[[#This Row],[Cantidad]]-VentasMenudeo[[#This Row],[Descuento]],VentasMenudeo[[#This Row],[Producto]]=$A$3,VentasMenudeo[[#This Row],[Precio de Venta]]*VentasMenudeo[[#This Row],[Cantidad]]-VentasMenudeo[[#This Row],[Descuento]],VentasMenudeo[[#This Row],[Producto]]=$A$4,VentasMenudeo[[#This Row],[Precio de Venta]]*VentasMenudeo[[#This Row],[Cantidad]]-VentasMenudeo[[#This Row],[Descuento]]),0)","v":1560},1560]
["2022-06-27","Julio","IPLAY MAX","Energy Ice",1,"Personal",null,null,{"$f":"_xlfn.IFNA(VLOOKUP(VentasMenudeo[[#This Row],[Producto]],$A$2:$B$4,2,FALSE),0)","v":260},{"$f":"_xlfn.IFNA(_xlfn.IFS(VentasMenudeo[[#This Row],[Producto]]=$A$2,VentasMenudeo[[#This Row],[Precio de Venta]]*VentasMenudeo[[#This Row],[Cantidad]]-VentasMenudeo[[#This Row],[Descuento]],VentasMenudeo[[#This Row],[Producto]]=$A$3,VentasMenudeo[[#This Row],[Precio de Venta]]*VentasMenudeo[[#This Row],[Cantidad]]-VentasMenudeo[[#This Row],[Descuento]],VentasMenudeo[[#This Row],[Producto]]=$A$4,VentasMenudeo[[#This Row],[Precio de Venta]]*VentasMenudeo[[#This Row],[Cantidad]]-VentasMenudeo[[#This Row],[Descuento]]),0)","v":260},260]
["2022-06-27","Julio","IPLAY MAX","Bluerazz",1,null,null,null,{"$f":"_xlfn.IFNA(VLOOKUP(VentasMenudeo[[#This Row],[Producto]],$A$2:$B$4,2,FALSE),0)","v":260},{"$f":"_xlfn.IFNA(_xlfn.IFS(VentasMenudeo[[#This Row],[Producto]]=$A$2,VentasMenudeo[[#This Row],[Precio de Venta]]*VentasMenudeo[[#This Row],[Cantidad]]-VentasMenudeo[[#This Row],[Descuento]],VentasMenudeo[[#This Row],[Producto]]=$A$3,VentasMenudeo[[#This Row],[Precio de Venta]]*VentasMenudeo[[#This Row],[Cantidad]]-VentasMenudeo[[#This Row],[Descuento]],VentasMenudeo[[#This Row],[Producto]]=$A$4,VentasMenudeo[[#This Row],[Precio de Venta]]*VentasMenudeo[[#This Row],[Cantidad]]-VentasMenudeo[[#This Row],[Descuento]]),0)","v":260},260]
["2022-06-27","Julio","IPLAY MAX","Grapestraw",2,null,null,null,{"$f":"_xlfn.IFNA(VLOOKUP(VentasMenudeo[[#This Row],[Producto]],$A$2:$B$4,2,FALSE),0)","v":260},{"$f":"_xlfn.IFNA(_xlfn.IFS(VentasMenudeo[[#This Row],[Producto]]=$A$2,VentasMenudeo[[#This Row],[Precio de Venta]]*VentasMenudeo[[#This Row],[Cantidad]]-VentasMenudeo[[#This Row],[Descuento]],VentasMenudeo[[#This Row],[Producto]]=$A$3,VentasMenudeo[[#This Row],[Precio de Venta]]*VentasMenudeo[[#This Row],[Cantidad]]-VentasMenudeo[[#This Row],[Descuento]],VentasMenudeo[[#This Row],[Producto]]=$A$4,VentasMenudeo[[#This Row],[Precio de Venta]]*VentasMenudeo[[#This Row],[Cantidad]]-VentasMenudeo[[#This Row],[Descuento]]),0)","v":520},520]
["2022-06-27","Julio","IPLAY MAX","Peach Ice",1,null,null,null,{"$f":"_xlfn.IFNA(VLOOKUP(VentasMenudeo[[#This Row],[Producto]],$A$2:$B$4,2,FALSE),0)","v":260},{"$f":"_xlfn.IFNA(_xlfn.IFS(VentasMenudeo[[#This Row],[Producto]]=$A$2,VentasMenudeo[[#This Row],[Precio de Venta]]*VentasMenudeo[[#This Row],[Cantidad]]-VentasMenudeo[[#This Row],[Descuento]],VentasMenudeo[[#This Row],[Producto]]=$A$3,VentasMenudeo[[#This Row],[Precio de Venta]]*VentasMenudeo[[#This Row],[Cantidad]]-VentasMenudeo[[#This Row],[Descuento]],VentasMenudeo[[#This Row],[Producto]]=$A$4,VentasMenudeo[[#This Row],[Precio de Venta]]*VentasMenudeo[[#This Row],[Cantidad]]-VentasMenudeo[[#This Row],[Descuento]]),0)","v":260},260]
["2022-06-27","Julio","IPLAY MAX","Berry Watermelon",1,null,null,null,{"$f":"_xlfn.IFNA(VLOOKUP(VentasMenudeo[[#This Row],[Producto]],$A$2:$B$4,2,FALSE),0)","v":260},{"$f":"_xlfn.IFNA(_xlfn.IFS(VentasMenudeo[[#This Row],[Producto]]=$A$2,VentasMenudeo[[#This Row],[Precio de Venta]]*VentasMenudeo[[#This Row],[Cantidad]]-VentasMenudeo[[#This Row],[Descuento]],VentasMenudeo[[#This Row],[Producto]]=$A$3,VentasMenudeo[[#This Row],[Precio de Venta]]*VentasMenudeo[[#This Row],[Cantidad]]-VentasMenudeo[[#This Row],[Descuento]],VentasMenudeo[[#This Row],[Producto]]=$A$4,VentasMenudeo[[#This Row],[Precio de Venta]]*VentasMenudeo[[#This Row],[Cantidad]]-VentasMenudeo[[#This Row],[Descuento]]),0)","v":260},260]
["2022-06-27","Julio","IPLAY MAX","Coconut",1,null,null,null,{"$f":"_xlfn.IFNA(VLOOKUP(VentasMenudeo[[#This Row],[Producto]],$A$2:$B$4,2,FALSE),0)","v":260},{"$f":"_xlfn.IFNA(_xlfn.IFS(VentasMenudeo[[#This Row],[Producto]]=$A$2,VentasMenudeo[[#This Row],[Precio de Venta]]*VentasMenudeo[[#This Row],[Cantidad]]-VentasMenudeo[[#This Row],[Descuento]],VentasMenudeo[[#This Row],[Producto]]=$A$3,VentasMenudeo[[#This Row],[Precio de Venta]]*VentasMenudeo[[#This Row],[Cantidad]]-VentasMenudeo[[#This Row],[Descuento]],VentasMenudeo[[#This Row],[Producto]]=$A$4,VentasMenudeo[[#This Row],[Precio de Venta]]*VentasMenudeo[[#This Row],[Cantidad]]-VentasMenudeo[[#This Row],[Descuento]]),0)","v":260},260]
["2022-06-27","Julio","IPLAY MAX","Grape Ice",5,null,null,null,{"$f":"_xlfn.IFNA(VLOOKUP(VentasMenudeo[[#This Row],[Producto]],$A$2:$B$4,2,FALSE),0)","v":260},{"$f":"_xlfn.IFNA(_xlfn.IFS(VentasMenudeo[[#This Row],[Producto]]=$A$2,VentasMenudeo[[#This Row],[Precio de Venta]]*VentasMenudeo[[#This Row],[Cantidad]]-VentasMenudeo[[#This Row],[Descuento]],VentasMenudeo[[#This Row],[Producto]]=$A$3,VentasMenudeo[[#This Row],[Precio de Venta]]*VentasMenudeo[[#This Row],[Cantidad]]-VentasMenudeo[[#This Row],[Descuento]],VentasMenudeo[[#This Row],[Producto]]=$A$4,VentasMenudeo[[#This Row],[Precio de Venta]]*VentasMenudeo[[#This Row],[Cantidad]]-VentasMenudeo[[#This Row],[Descuento]]),0)","v":1300},1300]
["2022-06-28","Julio","IPLAY MAX","Cool Mint",2,null,null,null,{"$f":"_xlfn.IFNA(VLOOKUP(VentasMenudeo[[#This Row],[Producto]],$A$2:$B$4,2,FALSE),0)","v":260},{"$f":"_xlfn.IFNA(_xlfn.IFS(VentasMenudeo[[#This Row],[Producto]]=$A$2,VentasMenudeo[[#This Row],[Precio de Venta]]*VentasMenudeo[[#This Row],[Cantidad]]-VentasMenudeo[[#This Row],[Descuento]],VentasMenudeo[[#This Row],[Producto]]=$A$3,VentasMenudeo[[#This Row],[Precio de Venta]]*VentasMenudeo[[#This Row],[Cantidad]]-VentasMenudeo[[#This Row],[Descuento]],VentasMenudeo[[#This Row],[Producto]]=$A$4,VentasMenudeo[[#This Row],[Precio de Venta]]*VentasMenudeo[[#This Row],[Cantidad]]-VentasMenudeo[[#This Row],[Descuento]]),0)","v":520},520]
["2022-06-28","Julio","IPLAY MAX","Energy Ice",1,null,null,null,{"$f":"_xlfn.IFNA(VLOOKUP(VentasMenudeo[[#This Row],[Producto]],$A$2:$B$4,2,FALSE),0)","v":260},{"$f":"_xlfn.IFNA(_xlfn.IFS(VentasMenudeo[[#This Row],[Producto]]=$A$2,VentasMenudeo[[#This Row],[Precio de Venta]]*VentasMenudeo[[#This Row],[Cantidad]]-VentasMenudeo[[#This Row],[Descuento]],VentasMenudeo[[#This Row],[Producto]]=$A$3,VentasMenudeo[[#This Row],[Precio de Venta]]*VentasMenudeo[[#This Row],[Cantidad]]-VentasMenudeo[[#This Row],[Descuento]],VentasMenudeo[[#This Row],[Producto]]=$A$4,VentasMenudeo[[#This Row],[Precio de Venta]]*VentasMenudeo[[#This Row],[Cantidad]]-VentasMenudeo[[#This Row],[Descuento]]),0)","v":260},260]
["2022-06-28","Julio","IPLAY MAX","Orange Ice",1,null,null,null,{"$f":"_xlfn.IFNA(VLOOKUP(VentasMenudeo[[#This Row],[Producto]],$A$2:$B$4,2,FALSE),0)","v":260},{"$f":"_xlfn.IFNA(_xlfn.IFS(VentasMenudeo[[#This Row],[Producto]]=$A$2,VentasMenudeo[[#This Row],[Precio de Venta]]*VentasMenudeo[[#This Row],[Cantidad]]-VentasMenudeo[[#This Row],[Descuento]],VentasMenudeo[[#This Row],[Producto]]=$A$3,VentasMenudeo[[#This Row],[Precio de Venta]]*VentasMenudeo[[#This Row],[Cantidad]]-VentasMenudeo[[#This Row],[Descuento]],VentasMenudeo[[#This Row],[Producto]]=$A$4,VentasMenudeo[[#This Row],[Precio de Venta]]*VentasMenudeo[[#This Row],[Cantidad]]-VentasMenudeo[[#This Row],[Descuento]]),0)","v":260},260]
["2022-06-28","Julio","IPLAY MAX","Banana Ice",1,null,null,null,{"$f":"_xlfn.IFNA(VLOOKUP(VentasMenudeo[[#This Row],[Producto]],$A$2:$B$4,2,FALSE),0)","v":260},{"$f":"_xlfn.IFNA(_xlfn.IFS(VentasMenudeo[[#This Row],[Producto]]=$A$2,VentasMenudeo[[#This Row],[Precio de Venta]]*VentasMenudeo[[#This Row],[Cantidad]]-VentasMenudeo[[#This Row],[Descuento]],VentasMenudeo[[#This Row],[Producto]]=$A$3,VentasMenudeo[[#This Row],[Precio de Venta]]*VentasMenudeo[[#This Row],[Cantidad]]-VentasMenudeo[[#This Row],[Descuento]],VentasMenudeo[[#This Row],[Producto]]=$A$4,VentasMenudeo[[#This Row],[Precio de Venta]]*VentasMenudeo[[#This Row],[Cantidad]]-VentasMenudeo[[#This Row],[Descuento]]),0)","v":260},260]
["2022-07-02","Julio","IPLAY MAX","GrapeFruit Berry",1,null,null,null,{"$f":"_xlfn.IFNA(VLOOKUP(VentasMenudeo[[#This Row],[Producto]],$A$2:$B$4,2,FALSE),0)","v":260},{"$f":"_xlfn.IFNA(_xlfn.IFS(VentasMenudeo[[#This Row],[Producto]]=$A$2,VentasMenudeo[[#This Row],[Precio de Venta]]*VentasMenudeo[[#This Row],[Cantidad]]-VentasMenudeo[[#This Row],[Descuento]],VentasMenudeo[[#This Row],[Producto]]=$A$3,VentasMenudeo[[#This Row],[Precio de Venta]]*VentasMenudeo[[#This Row],[Cantidad]]-VentasMenudeo[[#This Row],[Descuento]],VentasMenudeo[[#This Row],[Producto]]=$A$4,VentasMenudeo[[#This Row],[Precio de Venta]]*VentasMenudeo[[#This Row],[Cantidad]]-VentasMenudeo[[#This Row],[Descuento]]),0)","v":260},260]
["2022-07-02","Julio","IPLAY MAX","Bluerazz",3,null,null,null,{"$f":"_xlfn.IFNA(VLOOKUP(VentasMenudeo[[#This Row],[Producto]],$A$2:$B$4,2,FALSE),0)","v":260},{"$f":"_xlfn.IFNA(_xlfn.IFS(VentasMenudeo[[#This Row],[Producto]]=$A$2,VentasMenudeo[[#This Row],[Precio de Venta]]*VentasMenudeo[[#This Row],[Cantidad]]-VentasMenudeo[[#This Row],[Descuento]],VentasMenudeo[[#This Row],[Producto]]=$A$3,VentasMenudeo[[#This Row],[Precio de Venta]]*VentasMenudeo[[#This Row],[Cantidad]]-VentasMenudeo[[#This Row],[Descuento]],VentasMenudeo[[#This Row],[Producto]]=$A$4,VentasMenudeo[[#This Row],[Precio de Venta]]*VentasMenudeo[[#This Row],[Cantidad]]-VentasMenudeo[[#This Row],[Descuento]]),0)","v":780},780]
["2022-07-02","Julio","IPLAY MAX","Lemon Cucumber",1,null,null,null,{"$f":"_xlfn.IFNA(VLOOKUP(VentasMenudeo[[#This Row],[Producto]],$A$2:$B$4,2,FALSE),0)","v":260},{"$f":"_xlfn.IFNA(_xlfn.IFS(VentasMenudeo[[#This Row],[Producto]]=$A$2,VentasMenudeo[[#This Row],[Precio de Venta]]*VentasMenudeo[[#This Row],[Cantidad]]-VentasMenudeo[[#This Row],[Descuento]],VentasMenudeo[[#This Row],[Producto]]=$A$3,VentasMenudeo[[#This Row],[Precio de Venta]]*VentasMenudeo[[#This Row],[Cantidad]]-VentasMenudeo[[#This Row],[Descuento]],VentasMenudeo[[#This Row],[Producto]]=$A$4,VentasMenudeo[[#This Row],[Precio de Venta]]*VentasMenudeo[[#This Row],[Cantidad]]-VentasMenudeo[[#This Row],[Descuento]]),0)","v":260},260]
["2022-07-02","Julio","IPLAY MAX","Grape Ice",1,null,null,null,{"$f":"_xlfn.IFNA(VLOOKUP(VentasMenudeo[[#This Row],[Producto]],$A$2:$B$4,2,FALSE),0)","v":260},{"$f":"_xlfn.IFNA(_xlfn.IFS(VentasMenudeo[[#This Row],[Producto]]=$A$2,VentasMenudeo[[#This Row],[Precio de Venta]]*VentasMenudeo[[#This Row],[Cantidad]]-VentasMenudeo[[#This Row],[Descuento]],VentasMenudeo[[#This Row],[Producto]]=$A$3,VentasMenudeo[[#This Row],[Precio de Venta]]*VentasMenudeo[[#This Row],[Cantidad]]-VentasMenudeo[[#This Row],[Descuento]],VentasMenudeo[[#This Row],[Producto]]=$A$4,VentasMenudeo[[#This Row],[Precio de Venta]]*VentasMenudeo[[#This Row],[Cantidad]]-VentasMenudeo[[#This Row],[Descuento]]),0)","v":260},260]
["2022-07-02","Julio","IPLAY MAX","Mango Ice",1,null,null,null,{"$f":"_xlfn.IFNA(VLOOKUP(VentasMenudeo[[#This Row],[Producto]],$A$2:$B$4,2,FALSE),0)","v":260},{"$f":"_xlfn.IFNA(_xlfn.IFS(VentasMenudeo[[#This Row],[Producto]]=$A$2,VentasMenudeo[[#This Row],[Precio de Venta]]*VentasMenudeo[[#This Row],[Cantidad]]-VentasMenudeo[[#This Row],[Descuento]],VentasMenudeo[[#This Row],[Producto]]=$A$3,VentasMenudeo[[#This Row],[Precio de Venta]]*VentasMenudeo[[#This Row],[Cantidad]]-VentasMenudeo[[#This Row],[Descuento]],VentasMenudeo[[#This Row],[Producto]]=$A$4,VentasMenudeo[[#This Row],[Precio de Venta]]*VentasMenudeo[[#This Row],[Cantidad]]-VentasMenudeo[[#This Row],[Descuento]]),0)","v":260},260]
["2022-07-10","Julio","IPLAY MAX","Cool Mint",6,null,null,null,{"$f":"_xlfn.IFNA(VLOOKUP(VentasMenudeo[[#This Row],[Producto]],$A$2:$B$4,2,FALSE),0)","v":260},{"$f":"_xlfn.IFNA(_xlfn.IFS(VentasMenudeo[[#This Row],[Producto]]=$A$2,VentasMenudeo[[#This Row],[Precio de Venta]]*VentasMenudeo[[#This Row],[Cantidad]]-VentasMenudeo[[#This Row],[Descuento]],VentasMenudeo[[#This Row],[Producto]]=$A$3,VentasMenudeo[[#This Row],[Precio de Venta]]*VentasMenudeo[[#This Row],[Cantidad]]-VentasMenudeo[[#This Row],[Descuento]],VentasMenudeo[[#This Row],[Producto]]=$A$4,VentasMenudeo[[#This Row],[Precio de Venta]]*VentasMenudeo[[#This Row],[Cantidad]]-VentasMenudeo[[#This Row],[Descuento]]),0)","v":1560},1560]
["2022-07-10","Julio","IPLAY MAX","Guava",2,null,null,null,{"$f":"_xlfn.IFNA(VLOOKUP(VentasMenudeo[[#This Row],[Producto]],$A$2:$B$4,2,FALSE),0)","v":260},{"$f":"_xlfn.IFNA(_xlfn.IFS(VentasMenudeo[[#This Row],[Producto]]=$A$2,VentasMenudeo[[#This Row],[Precio de Venta]]*VentasMenudeo[[#This Row],[Cantidad]]-VentasMenudeo[[#This Row],[Descuento]],VentasMenudeo[[#This Row],[Producto]]=$A$3,VentasMenudeo[[#This Row],[Precio de Venta]]*VentasMenudeo[[#This Row],[Cantidad]]-VentasMenudeo[[#This Row],[Descuento]],VentasMenudeo[[#This Row],[Producto]]=$A$4,VentasMenudeo[[#This Row],[Precio de Venta]]*VentasMenudeo[[#This Row],[Cantidad]]-VentasMenudeo[[#This Row],[Descuento]]),0)","v":520},520]
["2022-07-10","Julio","IPLAY MAX","Bluerazz",5,null,null,null,{"$f":"_xlfn.IFNA(VLOOKUP(VentasMenudeo[[#This Row],[Producto]],$A$2:$B$4,2,FALSE),0)","v":260},{"$f":"_xlfn.IFNA(_xlfn.IFS(VentasMenudeo[[#This Row],[Producto]]=$A$2,VentasMenudeo[[#This Row],[Precio de Venta]]*VentasMenudeo[[#This Row],[Cantidad]]-VentasMenudeo[[#This Row],[Descuento]],VentasMenudeo[[#This Row],[Producto]]=$A$3,VentasMenudeo[[#This Row],[Precio de Venta]]*VentasMenudeo[[#This Row],[Cantidad]]-VentasMenudeo[[#This Row],[Descuento]],VentasMenudeo[[#This Row],[Producto]]=$A$4,VentasMenudeo[[#This Row],[Precio de Venta]]*VentasMenudeo[[#This Row],[Cantidad]]-VentasMenudeo[[#This Row],[Descuento]]),0)","v":1300},1300]
["2022-07-10","Julio","IPLAY MAX","Grapestraw",1,null,null,null,{"$f":"_xlfn.IFNA(VLOOKUP(VentasMenudeo[[#This Row],[Producto]],$A$2:$B$4,2,FALSE),0)","v":260},{"$f":"_xlfn.IFNA(_xlfn.IFS(VentasMenudeo[[#This Row],[Producto]]=$A$2,VentasMenudeo[[#This Row],[Precio de Venta]]*VentasMenudeo[[#This Row],[Cantidad]]-VentasMenudeo[[#This Row],[Descuento]],VentasMenudeo[[#This Row],[Producto]]=$A$3,VentasMenudeo[[#This Row],[Precio de Venta]]*VentasMenudeo[[#This Row],[Cantidad]]-VentasMenudeo[[#This Row],[Descuento]],VentasMenudeo[[#This Row],[Producto]]=$A$4,VentasMenudeo[[#This Row],[Precio de Venta]]*VentasMenudeo[[#This Row],[Cantidad]]-VentasMenudeo[[#This Row],[Descuento]]),0)","v":260},260]
["2022-07-10","Julio","IPLAY MAX","Berry Watermelon",1,null,null,null,{"$f":"_xlfn.IFNA(VLOOKUP(VentasMenudeo[[#This Row],[Producto]],$A$2:$B$4,2,FALSE),0)","v":260},{"$f":"_xlfn.IFNA(_xlfn.IFS(VentasMenudeo[[#This Row],[Producto]]=$A$2,VentasMenudeo[[#This Row],[Precio de Venta]]*VentasMenudeo[[#This Row],[Cantidad]]-VentasMenudeo[[#This Row],[Descuento]],VentasMenudeo[[#This Row],[Producto]]=$A$3,VentasMenudeo[[#This Row],[Precio de Venta]]*VentasMenudeo[[#This Row],[Cantidad]]-VentasMenudeo[[#This Row],[Descuento]],VentasMenudeo[[#This Row],[Producto]]=$A$4,VentasMenudeo[[#This Row],[Precio de Venta]]*VentasMenudeo[[#This Row],[Cantidad]]-VentasMenudeo[[#This Row],[Descuento]]),0)","v":260},260]
["2022-07-10","Julio","IPLAY MAX","Coconut",1,null,null,null,{"$f":"_xlfn.IFNA(VLOOKUP(VentasMenudeo[[#This Row],[Producto]],$A$2:$B$4,2,FALSE),0)","v":260},{"$f":"_xlfn.IFNA(_xlfn.IFS(VentasMenudeo[[#This Row],[Producto]]=$A$2,VentasMenudeo[[#This Row],[Precio de Venta]]*VentasMenudeo[[#This Row],[Cantidad]]-VentasMenudeo[[#This Row],[Descuento]],VentasMenudeo[[#This Row],[Producto]]=$A$3,VentasMenudeo[[#This Row],[Precio de Venta]]*VentasMenudeo[[#This Row],[Cantidad]]-VentasMenudeo[[#This Row],[Descuento]],VentasMenudeo[[#This Row],[Producto]]=$A$4,VentasMenudeo[[#This Row],[Precio de Venta]]*VentasMenudeo[[#This Row],[Cantidad]]-VentasMenudeo[[#This Row],[Descuento]]),0)","v":260},260]
["2022-07-10","Julio","IPLAY MAX","Lemon Cucumber",1,null,null,null,{"$f":"_xlfn.IFNA(VLOOKUP(VentasMenudeo[[#This Row],[Producto]],$A$2:$B$4,2,FALSE),0)","v":260},{"$f":"_xlfn.IFNA(_xlfn.IFS(VentasMenudeo[[#This Row],[Producto]]=$A$2,VentasMenudeo[[#This Row],[Precio de Venta]]*VentasMenudeo[[#This Row],[Cantidad]]-VentasMenudeo[[#This Row],[Descuento]],VentasMenudeo[[#This Row],[Producto]]=$A$3,VentasMenudeo[[#This Row],[Precio de Venta]]*VentasMenudeo[[#This Row],[Cantidad]]-VentasMenudeo[[#This Row],[Descuento]],VentasMenudeo[[#This Row],[Producto]]=$A$4,VentasMenudeo[[#This Row],[Precio de Venta]]*VentasMenudeo[[#This Row],[Cantidad]]-VentasMenudeo[[#This Row],[Descuento]]),0)","v":260},260]
["2022-07-10","Julio","IPLAY MAX","Passion Fruit",2,null,null,null,{"$f":"_xlfn.IFNA(VLOOKUP(VentasMenudeo[[#This Row],[Producto]],$A$2:$B$4,2,FALSE),0)","v":260},{"$f":"_xlfn.IFNA(_xlfn.IFS(VentasMenudeo[[#This Row],[Producto]]=$A$2,VentasMenudeo[[#This Row],[Precio de Venta]]*VentasMenudeo[[#This Row],[Cantidad]]-VentasMenudeo[[#This Row],[Descuento]],VentasMenudeo[[#This Row],[Producto]]=$A$3,VentasMenudeo[[#This Row],[Precio de Venta]]*VentasMenudeo[[#This Row],[Cantidad]]-VentasMenudeo[[#This Row],[Descuento]],VentasMenudeo[[#This Row],[Producto]]=$A$4,VentasMenudeo[[#This Row],[Precio de Venta]]*VentasMenudeo[[#This Row],[Cantidad]]-VentasMenudeo[[#This Row],[Descuento]]),0)","v":520},520]
["2022-07-10","Julio","IPLAY MAX","Banana Ice",4,null,null,null,{"$f":"_xlfn.IFNA(VLOOKUP(VentasMenudeo[[#This Row],[Producto]],$A$2:$B$4,2,FALSE),0)","v":260},{"$f":"_xlfn.IFNA(_xlfn.IFS(VentasMenudeo[[#This Row],[Producto]]=$A$2,VentasMenudeo[[#This Row],[Precio de Venta]]*VentasMenudeo[[#This Row],[Cantidad]]-VentasMenudeo[[#This Row],[Descuento]],VentasMenudeo[[#This Row],[Producto]]=$A$3,VentasMenudeo[[#This Row],[Precio de Venta]]*VentasMenudeo[[#This Row],[Cantidad]]-VentasMenudeo[[#This Row],[Descuento]],VentasMenudeo[[#This Row],[Producto]]=$A$4,VentasMenudeo[[#This Row],[Precio de Venta]]*VentasMenudeo[[#This Row],[Cantidad]]-VentasMenudeo[[#This Row],[Descuento]]),0)","v":1040},1040]
["2022-07-14","Julio","IPLAY MAX","Cool Mint",2,null,null,null,{"$f":"_xlfn.IFNA(VLOOKUP(VentasMenudeo[[#This Row],[Producto]],$A$2:$B$4,2,FALSE),0)","v":260},{"$f":"_xlfn.IFNA(_xlfn.IFS(VentasMenudeo[[#This Row],[Producto]]=$A$2,VentasMenudeo[[#This Row],[Precio de Venta]]*VentasMenudeo[[#This Row],[Cantidad]]-VentasMenudeo[[#This Row],[Descuento]],VentasMenudeo[[#This Row],[Producto]]=$A$3,VentasMenudeo[[#This Row],[Precio de Venta]]*VentasMenudeo[[#This Row],[Cantidad]]-VentasMenudeo[[#This Row],[Descuento]],VentasMenudeo[[#This Row],[Producto]]=$A$4,VentasMenudeo[[#This Row],[Precio de Venta]]*VentasMenudeo[[#This Row],[Cantidad]]-VentasMenudeo[[#This Row],[Descuento]]),0)","v":520},520]
["2022-07-14","Julio","IPLAY MAX","Grapestraw",2,null,null,null,{"$f":"_xlfn.IFNA(VLOOKUP(VentasMenudeo[[#This Row],[Producto]],$A$2:$B$4,2,FALSE),0)","v":260},{"$f":"_xlfn.IFNA(_xlfn.IFS(VentasMenudeo[[#This Row],[Producto]]=$A$2,VentasMenudeo[[#This Row],[Precio de Venta]]*VentasMenudeo[[#This Row],[Cantidad]]-VentasMenudeo[[#This Row],[Descuento]],VentasMenudeo[[#This Row],[Producto]]=$A$3,VentasMenudeo[[#This Row],[Precio de Venta]]*VentasMenudeo[[#This Row],[Cantidad]]-VentasMenudeo[[#This Row],[Descuento]],VentasMenudeo[[#This Row],[Producto]]=$A$4,VentasMenudeo[[#This Row],[Precio de Venta]]*VentasMenudeo[[#This Row],[Cantidad]]-VentasMenudeo[[#This Row],[Descuento]]),0)","v":520},520]
["2022-07-14","Julio","IPLAY MAX","Berry Watermelon",1,null,null,null,{"$f":"_xlfn.IFNA(VLOOKUP(VentasMenudeo[[#This Row],[Producto]],$A$2:$B$4,2,FALSE),0)","v":260},{"$f":"_xlfn.IFNA(_xlfn.IFS(VentasMenudeo[[#This Row],[Producto]]=$A$2,VentasMenudeo[[#This Row],[Precio de Venta]]*VentasMenudeo[[#This Row],[Cantidad]]-VentasMenudeo[[#This Row],[Descuento]],VentasMenudeo[[#This Row],[Producto]]=$A$3,VentasMenudeo[[#This Row],[Precio de Venta]]*VentasMenudeo[[#This Row],[Cantidad]]-VentasMenudeo[[#This Row],[Descuento]],VentasMenudeo[[#This Row],[Producto]]=$A$4,VentasMenudeo[[#This Row],[Precio de Venta]]*VentasMenudeo[[#This Row],[Cantidad]]-VentasMenudeo[[#This Row],[Descuento]]),0)","v":260},260]
["2022-07-14","Julio","IPLAY MAX","Grape Ice",4,null,null,null,{"$f":"_xlfn.IFNA(VLOOKUP(VentasMenudeo[[#This Row],[Producto]],$A$2:$B$4,2,FALSE),0)","v":260},{"$f":"_xlfn.IFNA(_xlfn.IFS(VentasMenudeo[[#This Row],[Producto]]=$A$2,VentasMenudeo[[#This Row],[Precio de Venta]]*VentasMenudeo[[#This Row],[Cantidad]]-VentasMenudeo[[#This Row],[Descuento]],VentasMenudeo[[#This Row],[Producto]]=$A$3,VentasMenudeo[[#This Row],[Precio de Venta]]*VentasMenudeo[[#This Row],[Cantidad]]-VentasMenudeo[[#This Row],[Descuento]],VentasMenudeo[[#This Row],[Producto]]=$A$4,VentasMenudeo[[#This Row],[Precio de Venta]]*VentasMenudeo[[#This Row],[Cantidad]]-VentasMenudeo[[#This Row],[Descuento]]),0)","v":1040},1040]
["2022-07-14","Julio","IPLAY MAX","Banana Ice",1,null,null,null,{"$f":"_xlfn.IFNA(VLOOKUP(VentasMenudeo[[#This Row],[Producto]],$A$2:$B$4,2,FALSE),0)","v":260},{"$f":"_xlfn.IFNA(_xlfn.IFS(VentasMenudeo[[#This Row],[Producto]]=$A$2,VentasMenudeo[[#This Row],[Precio de Venta]]*VentasMenudeo[[#This Row],[Cantidad]]-VentasMenudeo[[#This Row],[Descuento]],VentasMenudeo[[#This Row],[Producto]]=$A$3,VentasMenudeo[[#This Row],[Precio de Venta]]*VentasMenudeo[[#This Row],[Cantidad]]-VentasMenudeo[[#This Row],[Descuento]],VentasMenudeo[[#This Row],[Producto]]=$A$4,VentasMenudeo[[#This Row],[Precio de Venta]]*VentasMenudeo[[#This Row],[Cantidad]]-VentasMenudeo[[#This Row],[Descuento]]),0)","v":260},260]
[null,null,null,null,{"$f":"SUM(VentasMenudeo[Cantidad])","v":137},null,null,{"$f":"SUBTOTAL(109,VentasMenudeo[Descuento])","v":905},null,{"$f":"SUBTOTAL(109,VentasMenudeo[Venta Total])","v":34715},{"$f":"SUBTOTAL(109,VentasMenudeo[Transferencia])","v":31095},{"$f":"SUBTOTAL(109,VentasMenudeo[Efectivo])","v":3620}]
[]
[]
[]
[null,null,null,null,{"$f":"SUM(E38:E88)","v":93},{"$f":"145*E93","v":13485}]

{"sheet":"Ventas Mayoreo","index":2,"n_rows":24,"n_cols":10,"rows_kept":24,"cut":false,"hidden":false,"merged":[]}
[]
[]
[]
["Fecha","Vendedor","Producto","Sabor","Cantidad","Precio Mayoreo","Precio de venta","Ventas Totales","Transferencia","Efectivo"]
["2022-06-02","Julio ","IPLAY MAX","Sour Apple Melon",2,"Vape Maza",{"$f":"_xlfn.IFNA(VLOOKUP(VentasMayoreo[[#This Row],[Precio Mayoreo]],PreciosMayoreo[],3,0),0)","v":150},{"$f":"VentasMayoreo[[#This Row],[Cantidad]]*VentasMayoreo[[#This Row],[Precio de venta]]","v":300},null,300]
["2022-06-02","Julio ","IPLAY MAX","StrawBerry Lychee",3,"Vape Maza",{"$f":"_xlfn.IFNA(VLOOKUP(VentasMayoreo[[#This Row],[Precio Mayoreo]],PreciosMayoreo[],3,0),0)","v":150},{"$f":"VentasMayoreo[[#This Row],[Cantidad]]*VentasMayoreo[[#This Row],[Precio de venta]]","v":450},null,450]
["2022-06-02","Julio ","IPLAY MAX","Guava",2,"Vape Maza",{"$f":"_xlfn.IFNA(VLOOKUP(VentasMayoreo[[#This Row],[Precio Mayoreo]],PreciosMayoreo[],3,0),0)","v":150},{"$f":"VentasMayoreo[[#This Row],[Cantidad]]*VentasMayoreo[[#This Row],[Precio de venta]]","v":300},null,300]
["2022-06-02","Julio ","IPLAY MAX","Bluerazz",3,"Vape Maza",{"$f":"_xlfn.IFNA(VLOOKUP(VentasMayoreo[[#This Row],[Precio Mayoreo]],PreciosMayoreo[],3,0),0)","v":150},{"$f":"VentasMayoreo[[#This Row],[Cantidad]]*VentasMayoreo[[#This Row],[Precio de venta]]","v":450},null,450]
["2022-06-02","Julio ","IPLAY MAX","GrapeFruit Berry",2,"Vape Maza",{"$f":"_xlfn.IFNA(VLOOKUP(VentasMayoreo[[#This Row],[Precio Mayoreo]],PreciosMayoreo[],3,0),0)","v":150},{"$f":"VentasMayoreo[[#This Row],[Cantidad]]*VentasMayoreo[[#This Row],[Precio de venta]]","v":300},null,300]
["2022-06-02","Julio ","IPLAY MAX","Grapestraw",3,"Vape Maza",{"$f":"_xlfn.IFNA(VLOOKUP(VentasMayoreo[[#This Row],[Precio Mayoreo]],PreciosMayoreo[],3,0),0)","v":150},{"$f":"VentasMayoreo[[#This Row],[Cantidad]]*VentasMayoreo[[#This Row],[Precio de venta]]","v":450},null,450]
["2022-06-02","Julio ","IPLAY MAX","Cool Mint",3,"Vape Maza",{"$f":"_xlfn.IFNA(VLOOKUP(VentasMayoreo[[#This Row],[Precio Mayoreo]],PreciosMayoreo[],3,0),0)","v":150},{"$f":"VentasMayoreo[[#This Row],[Cantidad]]*VentasMayoreo[[#This Row],[Precio de venta]]","v":450},null,450]
["2022-06-02","Julio ","IPLAY MAX","Peach Ice",2,"Vape Maza",{"$f":"_xlfn.IFNA(VLOOKUP(VentasMayoreo[[#This Row],[Precio Mayoreo]],PreciosMayoreo[],3,0),0)","v":150},{"$f":"VentasMayoreo[[#This Row],[Cantidad]]*VentasMayoreo[[#This Row],[Precio de venta]]","v":300},null,300]
["2022-06-24","Julio ","IPLAY MAX","Energy Ice",3,"Vape Maza N",{"$f":"_xlfn.IFNA(VLOOKUP(VentasMayoreo[[#This Row],[Precio Mayoreo]],PreciosMayoreo[],3,0),0)","v":155},{"$f":"VentasMayoreo[[#This Row],[Cantidad]]*VentasMayoreo[[#This Row],[Precio de venta]]","v":465},465]
["2022-06-24","Julio","IPLAY MAX","Berry Watermelon",3,"Vape Maza N",{"$f":"_xlfn.IFNA(VLOOKUP(VentasMayoreo[[#This Row],[Precio Mayoreo]],PreciosMayoreo[],3,0),0)","v":155},{"$f":"VentasMayoreo[[#This Row],[Cantidad]]*VentasMayoreo[[#This Row],[Precio de venta]]","v":465},465]
["2022-06-24","Julio","IPLAY MAX","Bluerazz",3,"Vape Maza N",{"$f":"_xlfn.IFNA(VLOOKUP(VentasMayoreo[[#This Row],[Precio Mayoreo]],PreciosMayoreo[],3,0),0)","v":155},{"$f":"VentasMayoreo[[#This Row],[Cantidad]]*VentasMayoreo[[#This Row],[Precio de venta]]","v":465},465]
["2022-06-24","Julio","IPLAY MAX","GrapeFruit Berry",3,"Vape Maza N",{"$f":"_xlfn.IFNA(VLOOKUP(VentasMayoreo[[#This Row],[Precio Mayoreo]],PreciosMayoreo[],3,0),0)","v":155},{"$f":"VentasMayoreo[[#This Row],[Cantidad]]*VentasMayoreo[[#This Row],[Precio de venta]]","v":465},465]
["2022-06-24","Julio","IPLAY MAX","Grapestraw",3,"Vape Maza N",{"$f":"_xlfn.IFNA(VLOOKUP(VentasMayoreo[[#This Row],[Precio Mayoreo]],PreciosMayoreo[],3,0),0)","v":155},{"$f":"VentasMayoreo[[#This Row],[Cantidad]]*VentasMayoreo[[#This Row],[Precio de venta]]","v":465},465]
["2022-06-24","Julio","IPLAY MAX","Cool Mint",5,"Vape Maza N",{"$f":"_xlfn.IFNA(VLOOKUP(VentasMayoreo[[#This Row],[Precio Mayoreo]],PreciosMayoreo[],3,0),0)","v":155},{"$f":"VentasMayoreo[[#This Row],[Cantidad]]*VentasMayoreo[[#This Row],[Precio de venta]]","v":775},775]
["2022-06-24","Julio","IPLAY MAX","Grape Ice",4,"Vape Maza N",{"$f":"_xlfn.IFNA(VLOOKUP(VentasMayoreo[[#This Row],[Precio Mayoreo]],PreciosMayoreo[],3,0),0)","v":155},{"$f":"VentasMayoreo[[#This Row],[Cantidad]]*VentasMayoreo[[#This Row],[Precio de venta]]","v":620},620]
["2022-06-24","Julio","IPLAY MAX","Orange Ice",2,"Vape Maza N",{"$f":"_xlfn.IFNA(VLOOKUP(VentasMayoreo[[#This Row],[Precio Mayoreo]],PreciosMayoreo[],3,0),0)","v":155},{"$f":"VentasMayoreo[[#This Row],[Cantidad]]*VentasMayoreo[[#This Row],[Precio de venta]]","v":310},310]
["2022-06-24","Julio","IPLAY MAX","Mango Ice",2,"Vape Maza N",{"$f":"_xlfn.IFNA(VLOOKUP(VentasMayoreo[[#This Row],[Precio Mayoreo]],PreciosMayoreo[],3,0),0)","v":155},{"$f":"VentasMayoreo[[#This Row],[Cantidad]]*VentasMayoreo[[#This Row],[Precio de venta]]","v":310},310]
["2022-06-24","Julio","IPLAY MAX","Peach Ice",2,"Vape Maza N",{"$f":"_xlfn.IFNA(VLOOKUP(VentasMayoreo[[#This Row],[Precio Mayoreo]],PreciosMayoreo[],3,0),0)","v":155},{"$f":"VentasMayoreo[[#This Row],[Cantidad]]*VentasMayoreo[[#This Row],[Precio de venta]]","v":310},310]
["2022-06-24","Julio","IPLAY MAX","Banana Ice",2,"Vape Maza N",{"$f":"_xlfn.IFNA(VLOOKUP(VentasMayoreo[[#This Row],[Precio Mayoreo]],PreciosMayoreo[],3,0),0)","v":155},{"$f":"VentasMayoreo[[#This Row],[Cantidad]]*VentasMayoreo[[#This Row],[Precio de venta]]","v":310},310]
[null,null,null,null,{"$f":"SUBTOTAL(109,VentasMayoreo[Cantidad])","v":52},null,null,{"$f":"SUM(VentasMayoreo[Ventas Totales])","v":7960},{"$f":"SUBTOTAL(109,VentasMayoreo[Transferencia])","v":4960},{"$f":"SUBTOTAL(109,VentasMayoreo[Efectivo])","v":3000}]

{"sheet":"Inventario","index":3,"n_rows":140,"n_cols":14,"rows_kept":140,"cut":false,"hidden":false,"merged":[]}
[]
["Producto","Sabor","Cantidad",null,"Etiquetas de fila","Suma de Cantidad",null,null,null,"Pago",null,null,"Precio ",175]
["IPLAY MAX","Energy Ice",4,null,"IPLAY MAX",173,null,null,null,{"$f":"173*150","v":25950},"Pz",null,"Pz Entregadas ",54]
["IPLAY MAX","Sour Apple Melon",3,null,"Cool Mint",16,null,null,"Helena ",{"$f":"K4*N2","v":2450},14]
["IPLAY MAX","Cool Mint",2,null,"Energy Ice",9]
["IPLAY MAX","GrapeFruit Berry",4,null,"Lush Ice",0]
["IPLAY MAX","Lush Ice",3,null,"StrawBerry Lychee",3]
["IPLAY MAX","StrawBerry Lychee",1,null,"Sour Apple Melon",16]
["IPLAY MAX","Energy Ice",-2,null,"GrapeFruit Berry",16]
["IPLAY MAX","Sour Apple Melon",-1,null,"Guava",8]
["IPLAY MAX","Energy Ice",-1,null,"Bluerazz",11]
["IPLAY MAX","Lush Ice",-1,null,"Grapestraw",10]
["IPLAY MAX","GrapeFruit Berry",-1,null,"Peach Ice",17]
["IPLAY MAX","GrapeFruit Berry",-1,null,"Berry Watermelon",13]
["IPLAY MAX","Cool Mint",-1,null,"Coconut",18]
["IPLAY MAX","Cool Mint",-1,null,"Lemon Cucumber",7]
["IPLAY MAX","Lush Ice",-1,null,"Grape Ice",15,null,null,null,{"$f":"J3-SUM(J4:J16)","v":23500},{"$f":"N3-SUM(K4:K16)","v":40},null,{"$f":"(173-54)*130","v":15470}]
["IPLAY MAX","Lush Ice",-1,null,"Orange Ice",7]
["IPLAY MAX","StrawBerry Lychee",-1,null,"Mango Ice",3]
["IPLAY MAX","Sour Apple Melon",-1,null,"Banana Ice",2]
["IPLAY MAX","Energy Ice",-1,null,"Passion Fruit",2]
["IPLAY MAX","GrapeFruit Berry",-1]
["IPLAY MAX","Sour Apple Melon",10]
["IPLAY MAX","StrawBerry Lychee",10]
["IPLAY MAX","Guava",10]
["IPLAY MAX","Bluerazz",10]
["IPLAY MAX","GrapeFruit Berry",10]
["IPLAY MAX","Grapestraw",10]
["IPLAY MAX","Cool Mint",10]
["IPLAY MAX","Peach Ice",10]
["IPLAY MAX","Peach Ice",-1]
["IPLAY MAX","Cool Mint",-1]
["IPLAY MAX","Peach Ice",-1]
["IPLAY MAX","Cool Mint",-1]
["IPLAY MAX","GrapeFruit Berry",-1]
["IPLAY MAX","Sour Apple Melon",-2]
["IPLAY MAX","StrawBerry Lychee",-3]
["IPLAY MAX","Guava",-2]
["IPLAY MAX","Bluerazz",-3]
["IPLAY MAX","GrapeFruit Berry",-2]
["IPLAY MAX","Grapestraw",-3]
["IPLAY MAX","Cool Mint",-3]
["IPLAY MAX","Peach Ice",-2]
["IPLAY MAX","Cool Mint",-4]
["IPLAY MAX","Grapestraw",-3]
["IPLAY MAX","Cool Mint",-1]
["IPLAY MAX","StrawBerry Lychee",-2]
["IPLAY MAX","Sour Apple Melon",-1]
["IPLAY MAX","GrapeFruit Berry",-3]
["IPLAY MAX","GrapeFruit Berry",-2]
["IPLAY MAX","Bluerazz",-2]
["IPLAY MAX","Peach Ice",-1]
["IPLAY MAX","Peach Ice",-1]
["IPLAY MAX","GrapeFruit Berry",-1]
["IPLAY MAX","Bluerazz",-2]
["IPLAY MAX","GrapeFruit Berry",-1]
["IPLAY MAX","StrawBerry Lychee",-2]
["IPLAY MAX","GrapeFruit Berry",-1]
["IPLAY MAX","Sour Apple Melon",-2]
["IPLAY MAX","Guava",-2]
["IPLAY MAX","Guava",-1]
["IPLAY MAX","Bluerazz",-2]
["IPLAY MAX","Bluerazz",-1]
["IPLAY MAX","Peach Ice",-2]
["IPLAY MAX","Peach Ice",-1]
["IPLAY MAX","Grapestraw",-3]
["IPLAY MAX","Grapestraw",-1]
["IPLAY MAX","Energy Ice",15]
["IPLAY MAX","Sour Apple Melon",10]
["IPLAY MAX","Berry Watermelon",20]
["IPLAY MAX","Guava",5]
["IPLAY MAX","Bluerazz",15]
["IPLAY MAX","GrapeFruit Berry",10]
["IPLAY MAX","Grapestraw",10]
["IPLAY MAX","Cool Mint",25]
["IPLAY MAX","Coconut",20]
["IPLAY MAX","Lemon Cucumber",10]
["IPLAY MAX","Grape Ice",20]
["IPLAY MAX","Orange Ice",10]
["IPLAY MAX","Peach Ice",10]
["IPLAY MAX","Mango Ice",6]
["IPLAY MAX","Banana Ice",10]
["IPLAY MAX","Energy Ice",-3]
["IPLAY MAX","Berry Watermelon",-3]
["IPLAY MAX","Bluerazz",-3]
["IPLAY MAX","GrapeFruit Berry",-3]
["IPLAY MAX","Grapestraw",-3]
["IPLAY MAX","Cool Mint",-5]
["IPLAY MAX","Grape Ice",-4]
["IPLAY MAX","Orange Ice",-2]
["IPLAY MAX","Mango Ice",-2]
["IPLAY MAX","Peach Ice",-2]
["IPLAY MAX","Banana Ice",-2]
["IPLAY MAX","Cool Mint",-2]
["IPLAY MAX","Cool Mint",-1]
["IPLAY MAX","Energy Ice",-1]
["IPLAY MAX","Bluerazz",-2]
["IPLAY MAX","Grapestraw",-2]
["IPLAY MAX","Peach Ice",-1]
["IPLAY MAX","Berry Watermelon",-1]
["IPLAY MAX","Lemon Cucumber",-1]
["IPLAY MAX","Grape Ice",-1]
["IPLAY MAX","Passion Fruit",4]
["IPLAY MAX","Cool Mint",-6]
["IPLAY MAX","Energy Ice",-1]
["IPLAY MAX","Bluerazz",-1]
["IPLAY MAX","Grapestraw",-2]
["IPLAY MAX","Peach Ice",-1]
["IPLAY MAX","Berry Watermelon",-1]
["IPLAY MAX","Coconut",-1]
["IPLAY MAX","Grape Ice",-5]
["IPLAY MAX","Cool Mint",-2]
["IPLAY MAX","Energy Ice",-1]
["IPLAY MAX","Orange Ice",-1]
["IPLAY MAX","Banana Ice",-1]
["IPLAY MAX","Bluerazz",10]
["IPLAY MAX","GrapeFruit Berry",10]
["IPLAY MAX","Grapestraw",10]
["IPLAY MAX","Cool Mint",15]
["IPLAY MAX","Grape Ice",10]
["IPLAY MAX","Peach Ice",10]
["IPLAY MAX","GrapeFruit Berry",-1]
["IPLAY MAX","Bluerazz",-3]
["IPLAY MAX","Lemon Cucumber",-1]
["IPLAY MAX","Grape Ice",-1]
["IPLAY MAX","Mango Ice",-1]
["IPLAY MAX","Cool Mint",-6]
["IPLAY MAX","Guava",-2]
["IPLAY MAX","Bluerazz",-5]
["IPLAY MAX","Grapestraw",-1]
["IPLAY MAX","Berry Watermelon",-1]
["IPLAY MAX","Coconut",-1]
["IPLAY MAX","Lemon Cucumber",-1]
["IPLAY MAX","Passion Fruit",-2]
["IPLAY MAX","Banana Ice",-4]
["IPLAY MAX","Cool Mint",-2]
["IPLAY MAX","Grapestraw",-2]
["IPLAY MAX","Berry Watermelon",-1]
["IPLAY MAX","Grape Ice",-4]
["IPLAY MAX","Banana Ice",-1]

{"sheet":"Promociones","index":4,"n_rows":15,"n_cols":15,"rows_kept":15,"cut":false,"hidden":false,"merged":[[0,1,0,2]]}
[null,"Promoción Menudeo",null,null,null,null,"Tipo","IPLAY MAX",null,"Precio Mayoreo","Cantidad","Precio Venta",null,"Cantidad","Precio C/U"]
["Tipo","Promocion","Descuento",null,null,null,null,null,null,"Vape Maza","15-20",150,null,"15-20",183]
["ELF BAR","No aplica",0,null,null,null,"Etiquetas de fila",null,null,"Vape Maza N",null,155,null,"21-30",173]
["IPLAY CUBE","No aplica",0,null,null,null,"$20 Descuento",null,null,null,null,null,null,"31-40",163]
["IPLAY MAX","No aplica",0,null,null,null,"No aplica",null,null,null,null,null,null,"41-50",153]
["IPLAY CUBE","3er Vape",25,null,null,null,"Personal",null,null,null,null,null,null,"51-100",143]
["IPLAY MAX","$20 Descuento",20,null,null,null,"$20 peso"]
["IPLAY MAX","Personal",137]
["IPLAY MAX","$20 peso",20]
[]
[]
[]
[]
[]
[null,null,null,null,null,{"$f":"260-123","v":137}]

{"sheet":"Gastos","index":5,"n_rows":8,"n_cols":11,"rows_kept":8,"cut":false,"hidden":false,"merged":[]}
["Fecha ","Concepto","Monto","Socio","Transferencia","Efectvivo ",null,null,null,null,"Concepto"]
["2022-04-26","Bolsas/calcas",70,"Claudia",null,70,null,null,null,null,"Bolsas/calcas"]
["2022-06-02","Gasolina",200,"Julio",200,null,null,null,null,null,"Gasolina"]
["2022-06-23","Gasolina",400,"Julio",400,null,null,null,null,null,"Proveedor Torreon"]
["2022-06-23","Proveedor Torreon",27250,"Julio",27250]
["2022-06-28","Proveedor Torreon",9025,"Julio",9025]
["2022-07-10","Gasolina",700,"Julio",700]
[null,null,{"$f":"SUM(Gastos[Monto])","v":37645},null,{"$f":"SUBTOTAL(109,Gastos[Transferencia])","v":37575},{"$f":"SUBTOTAL(109,Gastos[[Efectvivo ]])","v":70}]

{"sheet":"Deudores","index":6,"n_rows":4,"n_cols":4,"rows_kept":4,"cut":false,"hidden":false,"merged":[]}
["Fecha","Pendientes de pago","Concepto","Cantidad"]
[{"$f":"TODAY()","v":"2022-09-06"},"Paulina","IPLAY",260]
[{"$f":"TODAY()","v":"2022-09-06"}]
[null,null,null,{"$f":"SUM(Deudores[Cantidad])","v":260}]

{"sheet":"Caja&Banco","index":7,"n_rows":117,"n_cols":13,"rows_kept":117,"cut":false,"hidden":false,"merged":[]}
["Fecha ","Socio ","Concepto","Tranferencia ","Efectivo",null,null,"IPLAY MAX","Concepto"]
[{"$f":"TODAY()","v":"2022-09-06"},"Julio","Deudores",{"$f":"-SUM(Deudores!D2:D3)","v":-260},null,null,null,null,"Bolsas/calcas"]
["2022-04-24","Julio","IPLAY MAX",260,null,null,null,null,"Depsocito de Gdl",null,null,"Etiquetas de fila","Suma de Total"]
["2022-04-24","Julio","IPLAY MAX",260,null,null,null,null,"Deudores",null,null,"Deudores",-260]
["2022-04-24","Claudia","IPLAY MAX",null,260,null,null,null,"Gasolina",null,null,"IPLAY MAX",42675]
["2022-04-26","Claudia","IPLAY MAX",null,260,null,null,null,"IPLAY MAX",null,null,"Proveedor Torreon",-36275]
["2022-04-26","Claudia","IPLAY MAX",null,260,null,null,null,"Proveedor Torreon",null,null,"Bolsas/calcas",-70]
["2022-04-26","Claudia","Bolsas/calcas",null,-70,null,null,null,"Tranferencia gdl",null,null,"Tranferencia gdl",-32020]
["2022-04-27","Claudia","IPLAY MAX",null,240,null,null,null,null,null,null,"Gasolina",-1300]
["2022-04-29","Julio","IPLAY MAX",260,null,null,null,null,null,null,null,"Depsocito de Gdl",27250]
["2022-04-30","Julio","IPLAY MAX",200,null,null,null,null,null,null,null,"Total general",0]
["2022-05-05","Julio","IPLAY MAX",240]
["2022-05-06","Claudia","IPLAY MAX",null,260]
["2022-05-06","Julio","IPLAY MAX",260]
["2022-05-06","Claudia","IPLAY MAX",260]
["2022-05-19","Julio","IPLAY MAX",null,520]
["2022-05-19","Julio","IPLAY MAX",null,260]
["2022-05-19","Julio","Tranferencia gdl",-1480]
["2022-05-19","Claudia","Tranferencia gdl",-260]
["2022-05-19","Claudia","Tranferencia gdl",null,-1210]
["2022-06-02","Julio","IPLAY MAX",260]
["2022-06-02","Julio","IPLAY MAX",null,260]
["2022-06-02","Julio","IPLAY MAX",260]
["2022-06-02","Julio","IPLAY MAX",260]
["2022-06-02","Julio","IPLAY MAX",260]
["2022-06-02","Julio","Gasolina",-200]
["2022-06-02","Julio","IPLAY MAX",null,300]
["2022-06-02","Julio","IPLAY MAX",null,450]
["2022-06-02","Julio","IPLAY MAX",null,300]
["2022-06-02","Julio","IPLAY MAX",null,450]
["2022-06-02","Julio","IPLAY MAX",null,300]
["2022-06-02","Julio","IPLAY MAX",null,450]
["2022-06-02","Julio","IPLAY MAX",null,450]
["2022-06-02","Julio","IPLAY MAX",null,300]
["2022-06-06","Julio","IPLAY MAX",1040]
["2022-06-06","Julio","IPLAY MAX",780]
["2022-06-16","Julio","IPLAY MAX",260]
["2022-06-16","Julio","IPLAY MAX",520]
["2022-06-16","Julio","IPLAY MAX",123]
["2022-06-16","Julio","IPLAY MAX",780]
["2022-06-16","Julio","IPLAY MAX",383]
["2022-06-16","Julio","IPLAY MAX",520]
["2022-06-16","Julio","IPLAY MAX",123]
["2022-06-16","Julio","IPLAY MAX",260]
["2022-06-17","Julio","Tranferencia gdl",-9149]
["2022-06-17","Julio","IPLAY MAX",260]
["2022-06-17","Julio","IPLAY MAX",null,520]
["2022-06-17","Julio","IPLAY MAX",null,260]
["2022-06-23","Julio","IPLAY MAX",500]
["2022-06-23","Julio","IPLAY MAX",240]
["2022-06-23","Julio","IPLAY MAX",500]
["2022-06-23","Julio","IPLAY MAX",500]
["2022-06-23","Julio","IPLAY MAX",123]
["2022-06-23","Julio","IPLAY MAX",null,520]
["2022-06-23","Julio","IPLAY MAX",240]
["2022-06-23","Julio","IPLAY MAX",500]
["2022-06-23","Julio","IPLAY MAX",260]
["2022-06-23","Julio","IPLAY MAX",780]
["2022-06-23","Julio","IPLAY MAX",123]
["2022-06-23","Julio","Gasolina",-400]
["2022-06-23","Julio","Depsocito de Gdl",27250]
["2022-06-23","Julio","Proveedor Torreon",-27250]
["2022-06-24","Julio","IPLAY MAX",465]
["2022-06-24","Julio","IPLAY MAX",465]
["2022-06-24","Julio","IPLAY MAX",465]
["2022-06-24","Julio","IPLAY MAX",465]
["2022-06-24","Julio","IPLAY MAX",465]
["2022-06-24","Julio","IPLAY MAX",775]
["2022-06-24","Julio","IPLAY MAX",620]
["2022-06-24","Julio","IPLAY MAX",310]
["2022-06-24","Julio","IPLAY MAX",310]
["2022-06-24","Julio","IPLAY MAX",310]
["2022-06-24","Julio","IPLAY MAX",310]
["2022-06-24","Julio","IPLAY MAX",520]
["2022-06-24","Julio","IPLAY MAX",260]
["2022-06-24","Julio","IPLAY MAX",260]
["2022-06-24","Julio","IPLAY MAX",520]
["2022-06-24","Julio","IPLAY MAX",520]
["2022-06-24","Julio","IPLAY MAX",260]
["2022-06-24","Julio","IPLAY MAX",260]
["2022-06-24","Julio","IPLAY MAX",260]
["2022-06-24","Julio","IPLAY MAX",260]
["2022-06-27","Julio","IPLAY MAX",1560]
["2022-06-27","Julio","IPLAY MAX",260]
["2022-06-27","Julio","IPLAY MAX",260]
["2022-06-27","Julio","IPLAY MAX",520]
["2022-06-27","Julio","IPLAY MAX",260]
["2022-06-27","Julio","IPLAY MAX",260]
["2022-06-27","Julio","IPLAY MAX",260]
["2022-06-27","Julio","IPLAY MAX",1300]
["2022-06-28","Julio","IPLAY MAX",520]
["2022-06-28","Julio","IPLAY MAX",260]
["2022-06-28","Julio","IPLAY MAX",260]
["2022-06-28","Julio","IPLAY MAX",260]
["2022-06-28","Julio","Proveedor Torreon",-9025]
["2022-07-02","Julio","IPLAY MAX",260]
["2022-07-02","Julio","IPLAY MAX",780]
["2022-07-02","Julio","IPLAY MAX",260]
["2022-07-02","Julio","IPLAY MAX",260]
["2022-07-02","Julio","IPLAY MAX",260]
["2022-07-10","Julio","IPLAY MAX",1560]
["2022-07-10","Julio","IPLAY MAX",520]
["2022-07-10","Julio","IPLAY MAX",1300]
["2022-07-10","Julio","IPLAY MAX",260]
["2022-07-10","Julio","IPLAY MAX",260]
["2022-07-10","Julio","IPLAY MAX",260]
["2022-07-10","Julio","IPLAY MAX",260]
["2022-07-10","Julio","IPLAY MAX",520]
["2022-07-10","Julio","IPLAY MAX",1040]
["2022-07-10","Julio","Gasolina",-700]
["2022-07-14","Julio","IPLAY MAX",520]
["2022-07-14","Julio","IPLAY MAX",520]
["2022-07-14","Julio","IPLAY MAX",260]
["2022-07-14","Julio","IPLAY MAX",1040]
["2022-07-14","Julio","IPLAY MAX",260]
["2022-08-24","Julio","Tranferencia gdl",-19921]
[null,null,null,{"$f":"SUM(Movimientos[[Tranferencia ]])","v":-5340},{"$f":"SUBTOTAL(109,Movimientos[Efectivo])","v":5340}]

{"sheet":"Reporte","index":8,"n_rows":23,"n_cols":7,"rows_kept":23,"cut":false,"hidden":false,"merged":[]}
[]
["Gastos",{"$f":"Gastos[[#Totals],[Monto]]","v":37645},null,null,null,"Inventario"]
["Ventas",{"$f":"VentasMenudeo[[#Totals],[Venta Total]]+VentasMayoreo[[#Totals],[Ventas Totales]]","v":42675},null,null,null,128,{"$f":"190*F3","v":24320}]
["Ingreso",{"$f":"VLOOKUP('Caja&Banco'!L10,'Caja&Banco'!L4:M10,2,0)","v":27250},null,null,null,201,{"$f":"F4*270","v":54270}]
["Utilidad",{"$f":"B3-B2","v":5030}]
[]
[]
["Capital Total",{"$f":"B3+B4","v":69925}]
["Tranferencia gdl",{"$f":"VLOOKUP(A9,'Caja&Banco'!L4:M10,2,0)","v":-32020}]
["Dinero Total ",{"$f":"B8-B2-(-B9)-Deudores[[#Totals],[Cantidad]]","v":0}]
[]
["Etiquetas de fila","Suma de Tranferencia ","Suma de Efectivo",null,null,"Banco","Efectivo "]
["Julio",-5340,5340,null,null,{"$f":"3490+1300","v":4790},3070]
["Claudia",0,0]
["Total general",-5340,5340,{"$f":"B15+C15","v":0},null,{"$f":"F13+G13","v":7860}]
[]
[null,null,null,null,null,8000,"celular"]
[null,null,null,null,null,850,"Plata paulina"]
[null,null,null,null,null,6000,"Mama"]
[null,null,null,null,null,330,"viri"]
[]
[]
[null,null,null,null,null,{"$f":"SUM(F15:F20)","v":23040},{"$f":"F23-D15","v":23040}]

{"sheet":"Graficas","index":9,"n_rows":0,"n_cols":0,"rows_kept":0,"cut":false,"hidden":false,"merged":[]}

{"sheet":"Hoja2","index":10,"n_rows":4,"n_cols":2,"rows_kept":4,"cut":false,"hidden":false,"merged":[]}
["Prestamo ",155000]
["Pago por apertura ",5000]
["Mensualidad ",1200]
[null,{"$f":"SUM(B1:B3)","v":161200}]